Publisher Label,Publisher URI,"Supplier ID","Supplier","Invoice No.","Amount (£)","Purpose","Transaction Number","Payment Date","Organisational Unit","Cost Centre(T)","Internal Category Number"
"Wolverhampton City Council","http://opendatacommunities.org/id/metropolitan-district-council/wolverhampton","705274","M.K.G. (Food Products) Limited","062985","316.26","Provisions (Resale)","130197065","20/12/2017","Visitor Economy","Art Gallery Tea Room","R4102"
"Wolverhampton City Council","http://opendatacommunities.org/id/metropolitan-district-council/wolverhampton","705274","M.K.G. (Food Products) Limited","061809","183.25","Provisions (Resale)","130196256","13/12/2017","Visitor Economy","Art Gallery Tea Room","R4102"
"Wolverhampton City Council","http://opendatacommunities.org/id/metropolitan-district-council/wolverhampton","705274","M.K.G. (Food Products) Limited","061809","-183.25","Provisions (Resale)","130196256","13/12/2017","Visitor Economy","Art Gallery Tea Room","R4102"
"Wolverhampton City Council","http://opendatacommunities.org/id/metropolitan-district-council/wolverhampton","705274","M.K.G. (Food Products) Limited","061809","27.22","Provisions (Resale)","130196256","13/12/2017","Visitor Economy","Art Gallery Tea Room","R4102"
"Wolverhampton City Council","http://opendatacommunities.org/id/metropolitan-district-council/wolverhampton","705274","M.K.G. (Food Products) Limited","061809","156.03","Provisions (Resale)","130196256","13/12/2017","Visitor Economy","Art Gallery Tea Room","R4102"
"Wolverhampton City Council","http://opendatacommunities.org/id/metropolitan-district-council/wolverhampton","705274","M.K.G. (Food Products) Limited","064287","100.73","Provisions (Resale)","130198008","27/12/2017","Visitor Economy","Art Gallery Tea Room","R4102"
"Wolverhampton City Council","http://opendatacommunities.org/id/metropolitan-district-council/wolverhampton","705274","M.K.G. (Food Products) Limited","064287","-100.73","Provisions (Resale)","130198008","27/12/2017","Visitor Economy","Art Gallery Tea Room","R4102"
"Wolverhampton City Council","http://opendatacommunities.org/id/metropolitan-district-council/wolverhampton","705274","M.K.G. (Food Products) Limited","064287","100.73","Provisions (Resale)","130198008","27/12/2017","Visitor Economy","Art Gallery Tea Room","R4102"
"Wolverhampton City Council","http://opendatacommunities.org/id/metropolitan-district-council/wolverhampton","705274","M.K.G. (Food Products) Limited","064285","184.98","Provisions (Resale)","130198007","27/12/2017","Visitor Economy","Art Gallery Tea Room","R4102"
"Wolverhampton City Council","http://opendatacommunities.org/id/metropolitan-district-council/wolverhampton","705274","M.K.G. (Food Products) Limited","064285","-184.98","Provisions (Resale)","130198007","27/12/2017","Visitor Economy","Art Gallery Tea Room","R4102"
"Wolverhampton City Council","http://opendatacommunities.org/id/metropolitan-district-council/wolverhampton","705274","M.K.G. (Food Products) Limited","064285","49.20","Provisions (Resale)","130198007","27/12/2017","Visitor Economy","Art Gallery Tea Room","R4102"
"Wolverhampton City Council","http://opendatacommunities.org/id/metropolitan-district-council/wolverhampton","705274","M.K.G. (Food Products) Limited","064285","135.78","Provisions (Resale)","130198007","27/12/2017","Visitor Economy","Art Gallery Tea Room","R4102"
"Wolverhampton City Council","http://opendatacommunities.org/id/metropolitan-district-council/wolverhampton","705274","M.K.G. (Food Products) Limited","061810","-63.66","Provisions (Resale)","130196257","13/12/2017","Visitor Economy","Art Gallery Tea Room","R4102"
"Wolverhampton City Council","http://opendatacommunities.org/id/metropolitan-district-council/wolverhampton","705274","M.K.G. (Food Products) Limited","061810","63.66","Provisions (Resale)","130196257","13/12/2017","Visitor Economy","Art Gallery Tea Room","R4102"
"Wolverhampton City Council","http://opendatacommunities.org/id/metropolitan-district-council/wolverhampton","705274","M.K.G. (Food Products) Limited","061810","63.66","Provisions (Resale)","130196257","13/12/2017","Visitor Economy","Art Gallery Tea Room","R4102"
"Wolverhampton City Council","http://opendatacommunities.org/id/metropolitan-district-council/wolverhampton","705274","M.K.G. (Food Products) Limited","063844","168.19","Provisions (Resale)","130198006","27/12/2017","Visitor Economy","Art Gallery Tea Room","R4102"
"Wolverhampton City Council","http://opendatacommunities.org/id/metropolitan-district-council/wolverhampton","705274","M.K.G. (Food Products) Limited","063844","-168.19","Provisions (Resale)","130198006","27/12/2017","Visitor Economy","Art Gallery Tea Room","R4102"
"Wolverhampton City Council","http://opendatacommunities.org/id/metropolitan-district-council/wolverhampton","705274","M.K.G. (Food Products) Limited","063844","168.19","Provisions (Resale)","130198006","27/12/2017","Visitor Economy","Art Gallery Tea Room","R4102"
"Wolverhampton City Council","http://opendatacommunities.org/id/metropolitan-district-council/wolverhampton","705274","M.K.G. (Food Products) Limited","060911","114.27","Provisions (Resale)","130196253","08/12/2017","Visitor Economy","Art Gallery Tea Room","R4102"
"Wolverhampton City Council","http://opendatacommunities.org/id/metropolitan-district-council/wolverhampton","705274","M.K.G. (Food Products) Limited","060911","-114.27","Provisions (Resale)","130196253","08/12/2017","Visitor Economy","Art Gallery Tea Room","R4102"
"Wolverhampton City Council","http://opendatacommunities.org/id/metropolitan-district-council/wolverhampton","705274","M.K.G. (Food Products) Limited","060911","114.27","Provisions (Resale)","130196253","08/12/2017","Visitor Economy","Art Gallery Tea Room","R4102"
"Wolverhampton City Council","http://opendatacommunities.org/id/metropolitan-district-council/wolverhampton","705274","M.K.G. (Food Products) Limited","062606","258.05","Provisions (Resale)","130197064","20/12/2017","Visitor Economy","Art Gallery Tea Room","R4102"
"Wolverhampton City Council","http://opendatacommunities.org/id/metropolitan-district-council/wolverhampton","705274","M.K.G. (Food Products) Limited","062606","-258.05","Provisions (Resale)","130197064","20/12/2017","Visitor Economy","Art Gallery Tea Room","R4102"
"Wolverhampton City Council","http://opendatacommunities.org/id/metropolitan-district-council/wolverhampton","705274","M.K.G. (Food Products) Limited","062606","258.05","Provisions (Resale)","130197064","20/12/2017","Visitor Economy","Art Gallery Tea Room","R4102"
"Wolverhampton City Council","http://opendatacommunities.org/id/metropolitan-district-council/wolverhampton","705303","Mail Solutions UK Limited","357250","593.00","Printing","130199761","28/12/2017","ICTS","Document Centre - General","R4300"
"Wolverhampton City Council","http://opendatacommunities.org/id/metropolitan-district-council/wolverhampton","705308","Maintenance Components Limited","113239","22.47","Equipment - Purchase","190400749","08/12/2017","Fleet Services","Fleet Management","R4000"
"Wolverhampton City Council","http://opendatacommunities.org/id/metropolitan-district-council/wolverhampton","705308","Maintenance Components Limited","113239","28.54","Equipment - Purchase","190400749","08/12/2017","Fleet Services","Fleet Management","R4000"
"Wolverhampton City Council","http://opendatacommunities.org/id/metropolitan-district-council/wolverhampton","705308","Maintenance Components Limited","113239","11.62","Equipment - Purchase","190400749","08/12/2017","Fleet Services","Fleet Management","R4000"
"Wolverhampton City Council","http://opendatacommunities.org/id/metropolitan-district-council/wolverhampton","705308","Maintenance Components Limited","113239","3.61","Equipment - Purchase","190400749","08/12/2017","Fleet Services","Fleet Management","R4000"
"Wolverhampton City Council","http://opendatacommunities.org/id/metropolitan-district-council/wolverhampton","705308","Maintenance Components Limited","113239","3.63","Equipment - Purchase","190400749","08/12/2017","Fleet Services","Fleet Management","R4000"
"Wolverhampton City Council","http://opendatacommunities.org/id/metropolitan-district-council/wolverhampton","705308","Maintenance Components Limited","113239","1.05","Equipment - Purchase","190400749","08/12/2017","Fleet Services","Fleet Management","R4000"
"Wolverhampton City Council","http://opendatacommunities.org/id/metropolitan-district-council/wolverhampton","705308","Maintenance Components Limited","113239","5.57","Equipment - Purchase","190400749","08/12/2017","Fleet Services","Fleet Management","R4000"
"Wolverhampton City Council","http://opendatacommunities.org/id/metropolitan-district-council/wolverhampton","705308","Maintenance Components Limited","113239","0.85","Equipment - Purchase","190400749","08/12/2017","Fleet Services","Fleet Management","R4000"
"Wolverhampton City Council","http://opendatacommunities.org/id/metropolitan-district-council/wolverhampton","705308","Maintenance Components Limited","113239","7.82","Equipment - Purchase","190400749","08/12/2017","Fleet Services","Fleet Management","R4000"
"Wolverhampton City Council","http://opendatacommunities.org/id/metropolitan-district-council/wolverhampton","705308","Maintenance Components Limited","113239","18.07","Equipment - Purchase","190400749","08/12/2017","Fleet Services","Fleet Management","R4000"
"Wolverhampton City Council","http://opendatacommunities.org/id/metropolitan-district-council/wolverhampton","705308","Maintenance Components Limited","113239","2.23","Equipment - Purchase","190400749","08/12/2017","Fleet Services","Fleet Management","R4000"
"Wolverhampton City Council","http://opendatacommunities.org/id/metropolitan-district-council/wolverhampton","705308","Maintenance Components Limited","113239","3.73","Equipment - Purchase","190400749","08/12/2017","Fleet Services","Fleet Management","R4000"
"Wolverhampton City Council","http://opendatacommunities.org/id/metropolitan-district-council/wolverhampton","705308","Maintenance Components Limited","113239","10.02","Equipment - Purchase","190400749","08/12/2017","Fleet Services","Fleet Management","R4000"
"Wolverhampton City Council","http://opendatacommunities.org/id/metropolitan-district-council/wolverhampton","705308","Maintenance Components Limited","113238","36.30","Equipment - Purchase","190400748","08/12/2017","Fleet Services","Fleet Management","R4000"
"Wolverhampton City Council","http://opendatacommunities.org/id/metropolitan-district-council/wolverhampton","705347","Mark Education Limited","2245600","27.40","Grant Payments","130196085","13/12/2017","Early Intervention","EIP Locality 3 - Graiseley","R4700"
"Wolverhampton City Council","http://opendatacommunities.org/id/metropolitan-district-council/wolverhampton","705347","Mark Education Limited","2245601","68.50","Grant Payments","130196086","13/12/2017","Early Intervention","EIP Locality 3 - Graiseley","R4700"
"Wolverhampton City Council","http://opendatacommunities.org/id/metropolitan-district-council/wolverhampton","705347","Mark Education Limited","2246443","27.40","Grant Payments","130197789","27/12/2017","Early Intervention","EIP Locality 3 - Graiseley","R4700"
"Wolverhampton City Council","http://opendatacommunities.org/id/metropolitan-district-council/wolverhampton","705347","Mark Education Limited","2245382","27.40","Grant Payments","130196081","06/12/2017","Early Intervention","EIP Locality 3 - Graiseley","R4700"
"Wolverhampton City Council","http://opendatacommunities.org/id/metropolitan-district-council/wolverhampton","705347","Mark Education Limited","2246065","27.40","Grant Payments","130197066","20/12/2017","Early Intervention","EIP Locality 3 - Graiseley","R4700"
"Wolverhampton City Council","http://opendatacommunities.org/id/metropolitan-district-council/wolverhampton","705347","Mark Education Limited","2246065","-27.40","Grant Payments","130197066","20/12/2017","Early Intervention","EIP Locality 3 - Graiseley","R4700"
"Wolverhampton City Council","http://opendatacommunities.org/id/metropolitan-district-council/wolverhampton","705347","Mark Education Limited","2246065","27.40","Grant Payments","130197066","20/12/2017","Early Intervention","EIP Locality 3 - Graiseley","R4700"
"Wolverhampton City Council","http://opendatacommunities.org/id/metropolitan-district-council/wolverhampton","705347","Mark Education Limited","2246066","27.40","Grant Payments","130197067","20/12/2017","Early Intervention","EIP Locality 3 - Graiseley","R4700"
"Wolverhampton City Council","http://opendatacommunities.org/id/metropolitan-district-council/wolverhampton","705347","Mark Education Limited","2246442","27.40","Grant Payments","130198908","27/12/2017","Early Intervention","EIP Locality 3 - Graiseley","R4700"
"Wolverhampton City Council","http://opendatacommunities.org/id/metropolitan-district-council/wolverhampton","705347","Mark Education Limited","2245602","27.40","Grant Payments","130196087","13/12/2017","Early Intervention","EIP Locality 3 - Graiseley","R4700"
"Wolverhampton City Council","http://opendatacommunities.org/id/metropolitan-district-council/wolverhampton","705347","Mark Education Limited","2245602","-27.40","Grant Payments","130196087","13/12/2017","Early Intervention","EIP Locality 3 - Graiseley","R4700"
"Wolverhampton City Council","http://opendatacommunities.org/id/metropolitan-district-council/wolverhampton","705347","Mark Education Limited","2245602","27.40","Grant Payments","130196087","13/12/2017","Early Intervention","EIP Locality 3 - Graiseley","R4700"
"Wolverhampton City Council","http://opendatacommunities.org/id/metropolitan-district-council/wolverhampton","705347","Mark Education Limited","2246441","34.25","Grant Payments","130197788","27/12/2017","Early Intervention","EIP Locality 3 - Graiseley","R4700"
"Wolverhampton City Council","http://opendatacommunities.org/id/metropolitan-district-council/wolverhampton","705347","Mark Education Limited","2245599","27.40","Grant Payments","130196084","13/12/2017","Early Intervention","EIP Locality 3 - Graiseley","R4700"
"Wolverhampton City Council","http://opendatacommunities.org/id/metropolitan-district-council/wolverhampton","705347","Mark Education Limited","2246068","68.50","Grant Payments","130196936","20/12/2017","Early Intervention","EIP Locality 3 - Graiseley","R4700"
"Wolverhampton City Council","http://opendatacommunities.org/id/metropolitan-district-council/wolverhampton","705347","Mark Education Limited","2246067","27.40","Grant Payments","130196935","20/12/2017","Early Intervention","EIP Locality 3 - Graiseley","R4700"
"Wolverhampton City Council","http://opendatacommunities.org/id/metropolitan-district-council/wolverhampton","705347","Mark Education Limited","2245383","27.40","Grant Payments","130195895","06/12/2017","Early Intervention","EIP Locality 3 - Graiseley","R4700"
"Wolverhampton City Council","http://opendatacommunities.org/id/metropolitan-district-council/wolverhampton","705347","Mark Education Limited","2246444","27.40","Grant Payments","130198909","27/12/2017","Early Intervention","EIP Locality 3 - Graiseley","R4700"
"Wolverhampton City Council","http://opendatacommunities.org/id/metropolitan-district-council/wolverhampton","705347","Mark Education Limited","2245598","27.40","Grant Payments","130196083","13/12/2017","Early Intervention","EIP Locality 3 - Graiseley","R4700"
"Wolverhampton City Council","http://opendatacommunities.org/id/metropolitan-district-council/wolverhampton","705347","Mark Education Limited","2245597","34.25","Grant Payments","130196082","13/12/2017","Early Intervention","EIP Locality 3 - Graiseley","R4700"
"Wolverhampton City Council","http://opendatacommunities.org/id/metropolitan-district-council/wolverhampton","705347","Mark Education Limited","2245597","-34.25","Grant Payments","130196082","13/12/2017","Early Intervention","EIP Locality 3 - Graiseley","R4700"
"Wolverhampton City Council","http://opendatacommunities.org/id/metropolitan-district-council/wolverhampton","705347","Mark Education Limited","2245597","34.25","Grant Payments","130196082","13/12/2017","Early Intervention","EIP Locality 3 - Graiseley","R4700"
"Wolverhampton City Council","http://opendatacommunities.org/id/metropolitan-district-council/wolverhampton","705347","Mark Education Limited","2246069","54.80","Grant Payments","130196937","20/12/2017","Early Intervention","EIP Locality 3 - Graiseley","R4700"
"Wolverhampton City Council","http://opendatacommunities.org/id/metropolitan-district-council/wolverhampton","705347","Mark Education Limited","2246064","34.25","Grant Payments","130196934","20/12/2017","Early Intervention","EIP Locality 3 - Graiseley","R4700"
"Wolverhampton City Council","http://opendatacommunities.org/id/metropolitan-district-council/wolverhampton","705347","Mark Education Limited","2246064","-34.25","Grant Payments","130196934","20/12/2017","Early Intervention","EIP Locality 3 - Graiseley","R4700"
"Wolverhampton City Council","http://opendatacommunities.org/id/metropolitan-district-council/wolverhampton","705347","Mark Education Limited","2246064","34.25","Grant Payments","130196934","20/12/2017","Early Intervention","EIP Locality 3 - Graiseley","R4700"
"Wolverhampton City Council","http://opendatacommunities.org/id/metropolitan-district-council/wolverhampton","705347","Mark Education Limited","2245381","27.40","Grant Payments","130195165","06/12/2017","Early Intervention","EIP Locality 3 - Graiseley","R4700"
"Wolverhampton City Council","http://opendatacommunities.org/id/metropolitan-district-council/wolverhampton","705347","Mark Education Limited","2245381","-27.40","Grant Payments","130195165","06/12/2017","Early Intervention","EIP Locality 3 - Graiseley","R4700"
"Wolverhampton City Council","http://opendatacommunities.org/id/metropolitan-district-council/wolverhampton","705347","Mark Education Limited","2245381","27.40","Grant Payments","130195165","06/12/2017","Early Intervention","EIP Locality 3 - Graiseley","R4700"
"Wolverhampton City Council","http://opendatacommunities.org/id/metropolitan-district-council/wolverhampton","705347","Mark Education Limited","2245380","34.25","Grant Payments","130195164","06/12/2017","Early Intervention","EIP Locality 3 - Graiseley","R4700"
"Wolverhampton City Council","http://opendatacommunities.org/id/metropolitan-district-council/wolverhampton","705347","Mark Education Limited","2245380","-34.25","Grant Payments","130195164","06/12/2017","Early Intervention","EIP Locality 3 - Graiseley","R4700"
"Wolverhampton City Council","http://opendatacommunities.org/id/metropolitan-district-council/wolverhampton","705347","Mark Education Limited","2245380","34.25","Grant Payments","130195164","06/12/2017","Early Intervention","EIP Locality 3 - Graiseley","R4700"
"Wolverhampton City Council","http://opendatacommunities.org/id/metropolitan-district-council/wolverhampton","705363","Marshall Fleet Solutions","16609","300.00","Training Expenses","130194956","06/12/2017","Human Resources","Centralised Training","R1650"
"Wolverhampton City Council","http://opendatacommunities.org/id/metropolitan-district-council/wolverhampton","705367","Marstons PLC","97653111","4,784.22","Provisions (Resale)","130198009","27/12/2017","Visitor Economy","The Little Civic","R4102"
"Wolverhampton City Council","http://opendatacommunities.org/id/metropolitan-district-council/wolverhampton","705367","Marstons PLC","97616303","4,754.74","Provisions (Resale)","130196089","13/12/2017","Visitor Economy","The Little Civic","R4102"
"Wolverhampton City Council","http://opendatacommunities.org/id/metropolitan-district-council/wolverhampton","705367","Marstons PLC","97637144","4,392.43","Provisions (Resale)","130197069","27/12/2017","Visitor Economy","Catering Overhead Account","R4102"
"Wolverhampton City Council","http://opendatacommunities.org/id/metropolitan-district-council/wolverhampton","705367","Marstons PLC","97634226","5,558.89","Provisions (Resale)","130197068","20/12/2017","Visitor Economy","Catering Overhead Account","R4102"
"Wolverhampton City Council","http://opendatacommunities.org/id/metropolitan-district-council/wolverhampton","705367","Marstons PLC","97597274","17,864.44","Provisions (Resale)","130194957","06/12/2017","Visitor Economy","Catering Overhead Account","R4102"
"Wolverhampton City Council","http://opendatacommunities.org/id/metropolitan-district-council/wolverhampton","705367","Marstons PLC","97623984","3,369.92","Provisions (Resale)","130196398","15/12/2017","Visitor Economy","Catering Overhead Account","R4102"
"Wolverhampton City Council","http://opendatacommunities.org/id/metropolitan-district-council/wolverhampton","705367","Marstons PLC","97610354","3,508.29","Provisions (Resale)","130196088","13/12/2017","Visitor Economy","Catering Overhead Account","R4102"
"Wolverhampton City Council","http://opendatacommunities.org/id/metropolitan-district-council/wolverhampton","705367","Marstons PLC","97602721","3,884.96","Provisions (Resale)","130195896","08/12/2017","Visitor Economy","Catering Overhead Account","R4102"
"Wolverhampton City Council","http://opendatacommunities.org/id/metropolitan-district-council/wolverhampton","705367","Marstons PLC","97616304","479.77","Provisions (Resale)","130196090","13/12/2017","Visitor Economy","The Little Civic","R4102"
"Wolverhampton City Council","http://opendatacommunities.org/id/metropolitan-district-council/wolverhampton","705367","Marstons PLC","97602720","18,091.59","Provisions (Resale)","130195334","08/12/2017","Visitor Economy","Catering Overhead Account","R4102"
"Wolverhampton City Council","http://opendatacommunities.org/id/metropolitan-district-council/wolverhampton","705432","Medpage Limited T/A Easylink UK","64404","1,177.17","Equipment - Purchase","130197578","15/12/2017","Independent Living Service","Telecare","R4000"
"Wolverhampton City Council","http://opendatacommunities.org/id/metropolitan-district-council/wolverhampton","705432","Medpage Limited T/A Easylink UK","64404","9.25","Equipment - Purchase","130197578","15/12/2017","Independent Living Service","Telecare","R4000"
"Wolverhampton City Council","http://opendatacommunities.org/id/metropolitan-district-council/wolverhampton","705453","Mercian Shutters Limited","40486","650.00","R&M - Departmental planned (external)","130192111","01/12/2017","Maintenance Programme","Centralised R&M","R2001"
"Wolverhampton City Council","http://opendatacommunities.org/id/metropolitan-district-council/wolverhampton","705484","Service Industry Solutions Michael Lay","0022","920.00","TPP - Maintenance Contractor - General","190398572","01/12/2017","Transportation","Cycling Schemes - Bikeability","R5720"
"Wolverhampton City Council","http://opendatacommunities.org/id/metropolitan-district-council/wolverhampton","705486","Michael Page Int Recruitment Limited","6241943","750.00","Agency Staff","130197355","20/12/2017","Strategic Finance","Strategic Finance","R1100"
"Wolverhampton City Council","http://opendatacommunities.org/id/metropolitan-district-council/wolverhampton","705488","Michael Tromans & Co","16/11/17","1,276.04","Rent","190399815","06/12/2017","Facilities Management","10 King Street","R2200"
"Wolverhampton City Council","http://opendatacommunities.org/id/metropolitan-district-council/wolverhampton","705496","Midcounties Co-Operative Funeralcare","080/70068593","1,187.00","Services - Professional Fees","130198012","27/12/2017","Safeguarding","Court of Protection, Funerals and Protection of Property","R4400"
"Wolverhampton City Council","http://opendatacommunities.org/id/metropolitan-district-council/wolverhampton","705496","Midcounties Co-Operative Funeralcare","080/70068200","1,187.00","Services - Professional Fees","130195705","08/12/2017","Safeguarding","Court of Protection, Funerals and Protection of Property","R4400"
"Wolverhampton City Council","http://opendatacommunities.org/id/metropolitan-district-council/wolverhampton","705519","Midland Motascreens Limited","16205","500.00","Insurance - General","130196753","08/12/2017","Environmental Maintenance","Ground Maintenance East","R4962"
"Wolverhampton City Council","http://opendatacommunities.org/id/metropolitan-district-council/wolverhampton","705519","Midland Motascreens Limited","16205","810.00","Insurance - General","130196753","08/12/2017","Audit Services","Motor Vehicles","R4962"
"Wolverhampton City Council","http://opendatacommunities.org/id/metropolitan-district-council/wolverhampton","705519","Midland Motascreens Limited","16189","425.00","Insurance - General","130194958","08/12/2017","Environmental Maintenance","Ground Maintenance East","R4962"
"Wolverhampton City Council","http://opendatacommunities.org/id/metropolitan-district-council/wolverhampton","705519","Midland Motascreens Limited","16213","275.00","Services - Professional Fees","190403330","15/12/2017","Fleet Services","Fleet Management","R4400"
"Wolverhampton City Council","http://opendatacommunities.org/id/metropolitan-district-council/wolverhampton","705520","Midland News Association Limited","I7419683","445.22","Marketing \ Non-staff advertising","130197267","20/12/2017","Operation & Maintenance of Existing Network","UTC - Utilities Organisations","R4317"
"Wolverhampton City Council","http://opendatacommunities.org/id/metropolitan-district-council/wolverhampton","705520","Midland News Association Limited","I7415348","544.16","Marketing \ Non-staff advertising","130196260","06/12/2017","Operation & Maintenance of Existing Network","UTC - Utilities Organisations","R4317"
"Wolverhampton City Council","http://opendatacommunities.org/id/metropolitan-district-council/wolverhampton","705520","Midland News Association Limited","I7418650","1,074.06","Marketing \ Non-staff advertising","130196530","13/12/2017","Markets","Wolverhampton Indoor and Open Market","R4317"
"Wolverhampton City Council","http://opendatacommunities.org/id/metropolitan-district-council/wolverhampton","705520","Midland News Association Limited","I7424092","445.22","Construction and Conversion","130199086","27/12/2017","-","Safety Programme","C1100"
"Wolverhampton City Council","http://opendatacommunities.org/id/metropolitan-district-council/wolverhampton","705520","Midland News Association Limited","I7418484","395.76","Marketing \ Non-staff advertising","130196754","13/12/2017","Operation & Maintenance of Existing Network","UTC - Utilities Organisations","R4317"
"Wolverhampton City Council","http://opendatacommunities.org/id/metropolitan-district-council/wolverhampton","705520","Midland News Association Limited","I7424746","222.62","Marketing \ Non-staff advertising","130198997","27/12/2017","Planning","Planning","R4317"
"Wolverhampton City Council","http://opendatacommunities.org/id/metropolitan-district-council/wolverhampton","705520","Midland News Association Limited","I7415242","494.70","Marketing \ Non-staff advertising","130196258","06/12/2017","Operation & Maintenance of Existing Network","UTC - Utilities Organisations","R4317"
"Wolverhampton City Council","http://opendatacommunities.org/id/metropolitan-district-council/wolverhampton","705520","Midland News Association Limited","I7421728","346.28","Marketing \ Non-staff advertising","130199085","20/12/2017","Planning","Planning","R4317"
"Wolverhampton City Council","http://opendatacommunities.org/id/metropolitan-district-council/wolverhampton","705520","Midland News Association Limited","I7408236","494.70","Marketing \ Non-staff advertising","130199084","15/12/2017","Operation & Maintenance of Existing Network","UTC - Utilities Organisations","R4317"
"Wolverhampton City Council","http://opendatacommunities.org/id/metropolitan-district-council/wolverhampton","705520","Midland News Association Limited","I7416829","544.16","Construction and Conversion","130197266","13/12/2017","-","GF - Accessing Growth Fund","C1100"
"Wolverhampton City Council","http://opendatacommunities.org/id/metropolitan-district-council/wolverhampton","705520","Midland News Association Limited","I7413524","395.76","Marketing \ Non-staff advertising","130195547","06/12/2017","Operation & Maintenance of Existing Network","UTC - Utilities Organisations","R4317"
"Wolverhampton City Council","http://opendatacommunities.org/id/metropolitan-district-council/wolverhampton","705520","Midland News Association Limited","I7415604","247.34","Marketing \ Non-staff advertising","130196261","06/12/2017","Planning","Planning","R4317"
"Wolverhampton City Council","http://opendatacommunities.org/id/metropolitan-district-council/wolverhampton","705520","Midland News Association Limited","I7415347","445.22","Marketing \ Non-staff advertising","130196259","06/12/2017","Operation & Maintenance of Existing Network","UTC - Utilities Organisations","R4317"
"Wolverhampton City Council","http://opendatacommunities.org/id/metropolitan-district-council/wolverhampton","705520","Midland News Association Limited","I7418763","494.70","Marketing \ Non-staff advertising","130196755","13/12/2017","Operation & Maintenance of Existing Network","UTC - Utilities Organisations","R4317"
"Wolverhampton City Council","http://opendatacommunities.org/id/metropolitan-district-council/wolverhampton","705520","Midland News Association Limited","I7422881","530.14","Construction and Conversion","130199185","27/12/2017","-","Safety Programme","C1100"
"Wolverhampton City Council","http://opendatacommunities.org/id/metropolitan-district-council/wolverhampton","705520","Midland News Association Limited","I7416021","445.22","Marketing \ Non-staff advertising","130196262","08/12/2017","Operation & Maintenance of Existing Network","UTC - Utilities Organisations","R4317"
"Wolverhampton City Council","http://opendatacommunities.org/id/metropolitan-district-council/wolverhampton","705525","Midland Quarry Products Limited","1980514283","1,375.68","Materials","130198209","27/12/2017","Highways Maintenance","Patching","R4007"
"Wolverhampton City Council","http://opendatacommunities.org/id/metropolitan-district-council/wolverhampton","705525","Midland Quarry Products Limited","1980507504","2,446.44","Materials","130196091","13/12/2017","Highways Maintenance","Patching","R4007"
"Wolverhampton City Council","http://opendatacommunities.org/id/metropolitan-district-council/wolverhampton","705525","Midland Quarry Products Limited","1980511458","3,056.90","Materials","130197268","20/12/2017","Highways Maintenance","Patching","R4007"
"Wolverhampton City Council","http://opendatacommunities.org/id/metropolitan-district-council/wolverhampton","705525","Midland Quarry Products Limited","1980510231","2,344.01","Materials","130196939","20/12/2017","Highways Maintenance","Patching","R4007"
"Wolverhampton City Council","http://opendatacommunities.org/id/metropolitan-district-council/wolverhampton","705525","Midland Quarry Products Limited","1980509063","2,331.15","Materials","130196399","13/12/2017","Highways Maintenance","Patching","R4007"
"Wolverhampton City Council","http://opendatacommunities.org/id/metropolitan-district-council/wolverhampton","705525","Midland Quarry Products Limited","1980513475","903.11","Materials","130197791","27/12/2017","Highways Maintenance","Patching","R4007"
"Wolverhampton City Council","http://opendatacommunities.org/id/metropolitan-district-council/wolverhampton","705525","Midland Quarry Products Limited","1980506207","1,228.03","Materials","130195548","06/12/2017","Highways Maintenance","Patching","R4007"
"Wolverhampton City Council","http://opendatacommunities.org/id/metropolitan-district-council/wolverhampton","705525","Midland Quarry Products Limited","1980507505","248.22","Materials","130196092","13/12/2017","Highways Maintenance","Patching","R4007"
"Wolverhampton City Council","http://opendatacommunities.org/id/metropolitan-district-council/wolverhampton","705525","Midland Quarry Products Limited","1980513474","2,302.64","Materials","130197790","27/12/2017","Highways Maintenance","Patching","R4007"
"Wolverhampton City Council","http://opendatacommunities.org/id/metropolitan-district-council/wolverhampton","705525","Midland Quarry Products Limited","1980504557","2,621.85","Materials","130195166","06/12/2017","Highways Maintenance","Patching","R4007"
"Wolverhampton City Council","http://opendatacommunities.org/id/metropolitan-district-council/wolverhampton","705534","Midlands Truck & Van Limited","88425590","13.32","Equipment - Purchase","190402041","13/12/2017","Fleet Services","Fleet Management","R4000"
"Wolverhampton City Council","http://opendatacommunities.org/id/metropolitan-district-council/wolverhampton","705534","Midlands Truck & Van Limited","88425337","0.63","Equipment - Purchase","190400773","08/12/2017","Fleet Services","Fleet Management","R4000"
"Wolverhampton City Council","http://opendatacommunities.org/id/metropolitan-district-council/wolverhampton","705534","Midlands Truck & Van Limited","83598291","40.60","Services - Professional Fees","190402039","13/12/2017","Fleet Services","Fleet Management","R4400"
"Wolverhampton City Council","http://opendatacommunities.org/id/metropolitan-district-council/wolverhampton","705534","Midlands Truck & Van Limited","83598291","260.00","Services - Professional Fees","190402039","13/12/2017","Fleet Services","Fleet Management","R4400"
"Wolverhampton City Council","http://opendatacommunities.org/id/metropolitan-district-council/wolverhampton","705534","Midlands Truck & Van Limited","88426093","122.55","Equipment - Purchase","190405271","21/12/2017","Fleet Services","Fleet Management","R4000"
"Wolverhampton City Council","http://opendatacommunities.org/id/metropolitan-district-council/wolverhampton","705541","Midwest Decorators","2127","850.00","R&M - Departmental planned (external)","130196093","06/12/2017","Maintenance Programme","Civic Centre Repairs & Maintenance","R2001"
"Wolverhampton City Council","http://opendatacommunities.org/id/metropolitan-district-council/wolverhampton","705542","Midwest Electrical Services Limited","I14446","188.03","R&M - Departmental planned (external)","130194816","06/12/2017","Licensing","Licensing - Street Trading","R2001"
"Wolverhampton City Council","http://opendatacommunities.org/id/metropolitan-district-council/wolverhampton","705542","Midwest Electrical Services Limited","I14374","58.87","R&M - Departmental planned (external)","130194349","06/12/2017","Maintenance Programme","Centralised R&M","R2001"
"Wolverhampton City Council","http://opendatacommunities.org/id/metropolitan-district-council/wolverhampton","705542","Midwest Electrical Services Limited","I14434","172.11","R&M - Departmental planned (external)","130194636","06/12/2017","Facilities Management","Magistrates","R2001"
"Wolverhampton City Council","http://opendatacommunities.org/id/metropolitan-district-council/wolverhampton","705542","Midwest Electrical Services Limited","I14397","350.75","R&M - Departmental planned (external)","130194484","06/12/2017","Facilities Management","Caretakers Community Centre","R2001"
"Wolverhampton City Council","http://opendatacommunities.org/id/metropolitan-district-council/wolverhampton","705542","Midwest Electrical Services Limited","I14657","119.45","R&M - Departmental planned (external)","130196940","20/12/2017","School Planning & Resources","Primary Expansion Feasibility Work","R2001"
"Wolverhampton City Council","http://opendatacommunities.org/id/metropolitan-district-council/wolverhampton","705542","Midwest Electrical Services Limited","I14628","63.89","R&M - Departmental planned (external)","130196760","20/12/2017","Markets","Bilston Market and Licensed Operations","R2001"
"Wolverhampton City Council","http://opendatacommunities.org/id/metropolitan-district-council/wolverhampton","705542","Midwest Electrical Services Limited","I14583","178.02","R&M - Departmental planned (external)","130196756","20/12/2017","Maintenance Programme","Centralised R&M","R2001"
"Wolverhampton City Council","http://opendatacommunities.org/id/metropolitan-district-council/wolverhampton","705542","Midwest Electrical Services Limited","I14607","47.22","R&M - Departmental planned (external)","130197581","20/12/2017","Maintenance Programme","Centralised R&M","R2001"
"Wolverhampton City Council","http://opendatacommunities.org/id/metropolitan-district-council/wolverhampton","705542","Midwest Electrical Services Limited","I14667","23.89","R&M - Departmental planned (external)","130197071","20/12/2017","Maintenance Programme","Centralised R&M","R2001"
"Wolverhampton City Council","http://opendatacommunities.org/id/metropolitan-district-council/wolverhampton","705542","Midwest Electrical Services Limited","I14483","684.11","R&M - Departmental planned (external)","130195341","15/12/2017","Maintenance Programme","Centralised R&M","R2001"
"Wolverhampton City Council","http://opendatacommunities.org/id/metropolitan-district-council/wolverhampton","705542","Midwest Electrical Services Limited","I14585","26.39","R&M - Departmental planned (external)","130196534","20/12/2017","Markets","Wholesale Market Facilities Management","R2001"
"Wolverhampton City Council","http://opendatacommunities.org/id/metropolitan-district-council/wolverhampton","705542","Midwest Electrical Services Limited","I14817","3,373.00","R&M - Departmental planned (external)","130198560","27/12/2017","Maintenance Programme","Centralised R&M","R2001"
"Wolverhampton City Council","http://opendatacommunities.org/id/metropolitan-district-council/wolverhampton","705542","Midwest Electrical Services Limited","I14765","99.32","R&M - Departmental planned (external)","130198016","27/12/2017","Maintenance Programme","Centralised R&M","R2001"
"Wolverhampton City Council","http://opendatacommunities.org/id/metropolitan-district-council/wolverhampton","705542","Midwest Electrical Services Limited","I14766","23.89","R&M - Departmental planned (external)","130198017","27/12/2017","Maintenance Programme","Centralised R&M","R2001"
"Wolverhampton City Council","http://opendatacommunities.org/id/metropolitan-district-council/wolverhampton","705542","Midwest Electrical Services Limited","I14770","210.87","R&M - Departmental planned (external)","130198021","27/12/2017","Maintenance Programme","Centralised R&M","R2001"
"Wolverhampton City Council","http://opendatacommunities.org/id/metropolitan-district-council/wolverhampton","705542","Midwest Electrical Services Limited","I14768","56.66","R&M - Departmental planned (external)","130198019","27/12/2017","Maintenance Programme","Centralised R&M","R2001"
"Wolverhampton City Council","http://opendatacommunities.org/id/metropolitan-district-council/wolverhampton","705542","Midwest Electrical Services Limited","I14735","117.88","R&M - Departmental planned (external)","130197598","27/12/2017","Facilities Management","Magistrates","R2001"
"Wolverhampton City Council","http://opendatacommunities.org/id/metropolitan-district-council/wolverhampton","705542","Midwest Electrical Services Limited","I14687","23.89","R&M - Departmental planned (external)","130197424","27/12/2017","Schools","Pupil Referral Units - Orchard Centre","R2001"
"Wolverhampton City Council","http://opendatacommunities.org/id/metropolitan-district-council/wolverhampton","705542","Midwest Electrical Services Limited","I14685","41.81","R&M - Departmental planned (external)","130197423","27/12/2017","Corporate Asset Management","Centralised Planned Maintenance","R2001"
"Wolverhampton City Council","http://opendatacommunities.org/id/metropolitan-district-council/wolverhampton","705542","Midwest Electrical Services Limited","I14730","45.00","R&M - Departmental planned (external)","130197594","27/12/2017","Facilities Management","Management of Vacant Properties","R2001"
"Wolverhampton City Council","http://opendatacommunities.org/id/metropolitan-district-council/wolverhampton","705542","Midwest Electrical Services Limited","232","-534.86","R&M - Departmental planned (external)","130198999","27/12/2017","Facilities Management","Caretakers Community Centre","R2001"
"Wolverhampton City Council","http://opendatacommunities.org/id/metropolitan-district-council/wolverhampton","705542","Midwest Electrical Services Limited","I14722","93.56","R&M - Departmental planned (external)","130197586","27/12/2017","Maintenance Programme","Centralised R&M","R2001"
"Wolverhampton City Council","http://opendatacommunities.org/id/metropolitan-district-council/wolverhampton","705542","Midwest Electrical Services Limited","I14769","460.69","R&M - Departmental planned (external)","130198020","27/12/2017","Markets","Bilston Market and Licensed Operations","R2001"
"Wolverhampton City Council","http://opendatacommunities.org/id/metropolitan-district-council/wolverhampton","705542","Midwest Electrical Services Limited","I14519","172.85","R&M - Departmental planned (external)","130197579","13/12/2017","Maintenance Programme","Centralised R&M","R2001"
"Wolverhampton City Council","http://opendatacommunities.org/id/metropolitan-district-council/wolverhampton","705542","Midwest Electrical Services Limited","I14395","28.99","R&M - Departmental planned (external)","130194482","13/12/2017","Maintenance Programme","Centralised R&M","R2001"
"Wolverhampton City Council","http://opendatacommunities.org/id/metropolitan-district-council/wolverhampton","705542","Midwest Electrical Services Limited","I14444","476.84","R&M - Departmental planned (external)","130194643","13/12/2017","Maintenance Programme","Centralised R&M","R2001"
"Wolverhampton City Council","http://opendatacommunities.org/id/metropolitan-district-council/wolverhampton","705542","Midwest Electrical Services Limited","I14450","29.13","R&M - Departmental planned (external)","130194820","13/12/2017","Maintenance Programme","Centralised R&M","R2001"
"Wolverhampton City Council","http://opendatacommunities.org/id/metropolitan-district-council/wolverhampton","705542","Midwest Electrical Services Limited","I14486","105.36","R&M - Departmental planned (external)","130195554","13/12/2017","Maintenance Programme","Centralised R&M","R2001"
"Wolverhampton City Council","http://opendatacommunities.org/id/metropolitan-district-council/wolverhampton","705542","Midwest Electrical Services Limited","I14492","23.89","R&M - Departmental planned (external)","130195555","13/12/2017","Maintenance Programme","Centralised R&M","R2001"
"Wolverhampton City Council","http://opendatacommunities.org/id/metropolitan-district-council/wolverhampton","705542","Midwest Electrical Services Limited","I14525","78.11","R&M - Departmental planned (external)","130196401","13/12/2017","Maintenance Programme","Centralised R&M","R2001"
"Wolverhampton City Council","http://opendatacommunities.org/id/metropolitan-district-council/wolverhampton","705542","Midwest Electrical Services Limited","I14538","66.32","R&M - Departmental planned (external)","130196266","13/12/2017","Cleaning","Public Conveniences","R2001"
"Wolverhampton City Council","http://opendatacommunities.org/id/metropolitan-district-council/wolverhampton","705542","Midwest Electrical Services Limited","I14403","97.40","R&M - Departmental planned (external)","130194490","08/12/2017","Markets","Bilston Market and Licensed Operations","R2001"
"Wolverhampton City Council","http://opendatacommunities.org/id/metropolitan-district-council/wolverhampton","705542","Midwest Electrical Services Limited","I14617","36.87","R&M - Departmental planned (external)","130197582","20/12/2017","Maintenance Programme","Centralised R&M","R2001"
"Wolverhampton City Council","http://opendatacommunities.org/id/metropolitan-district-council/wolverhampton","705542","Midwest Electrical Services Limited","I14644","66.77","R&M - Departmental planned (external)","130197584","20/12/2017","Maintenance Programme","Centralised R&M","R2001"
"Wolverhampton City Council","http://opendatacommunities.org/id/metropolitan-district-council/wolverhampton","705542","Midwest Electrical Services Limited","I14658","115.64","R&M - Departmental planned (external)","130196941","20/12/2017","Maintenance Programme","Centralised R&M","R2001"
"Wolverhampton City Council","http://opendatacommunities.org/id/metropolitan-district-council/wolverhampton","705542","Midwest Electrical Services Limited","I14614","514.70","R&M - Departmental planned (external)","130196538","20/12/2017","Facilities Management","Magistrates","R2001"
"Wolverhampton City Council","http://opendatacommunities.org/id/metropolitan-district-council/wolverhampton","705542","Midwest Electrical Services Limited","I14584","110.38","R&M - Departmental planned (external)","130196533","20/12/2017","Facilities Management","i10 Facilities Management","R2001"
"Wolverhampton City Council","http://opendatacommunities.org/id/metropolitan-district-council/wolverhampton","705542","Midwest Electrical Services Limited","I14581","23.89","R&M - Departmental planned (external)","130196531","20/12/2017","Maintenance Programme","Centralised R&M","R2001"
"Wolverhampton City Council","http://opendatacommunities.org/id/metropolitan-district-council/wolverhampton","705542","Midwest Electrical Services Limited","I14493","85.76","R&M - Departmental planned (external)","130195556","06/12/2017","Facilities Management","Culwell Street Depot","R2001"
"Wolverhampton City Council","http://opendatacommunities.org/id/metropolitan-district-council/wolverhampton","705542","Midwest Electrical Services Limited","I14405","1,267.00","R&M - Departmental planned (external)","130194492","06/12/2017","Maintenance Programme","Centralised R&M","R2001"
"Wolverhampton City Council","http://opendatacommunities.org/id/metropolitan-district-council/wolverhampton","705542","Midwest Electrical Services Limited","I14487","68.78","R&M - Departmental planned (external)","130195343","06/12/2017","Facilities Management","i10 Facilities Management","R2001"
"Wolverhampton City Council","http://opendatacommunities.org/id/metropolitan-district-council/wolverhampton","705542","Midwest Electrical Services Limited","I14447","183.69","R&M - Departmental planned (external)","130194817","06/12/2017","Markets","Wolverhampton Indoor and Open Market","R2001"
"Wolverhampton City Council","http://opendatacommunities.org/id/metropolitan-district-council/wolverhampton","705542","Midwest Electrical Services Limited","I14435","120.70","R&M - Departmental planned (external)","130194637","06/12/2017","Facilities Management","Magistrates","R2001"
"Wolverhampton City Council","http://opendatacommunities.org/id/metropolitan-district-council/wolverhampton","705542","Midwest Electrical Services Limited","I14537","23.89","R&M - Departmental planned (external)","130196265","13/12/2017","Maintenance Programme","Centralised R&M","R2001"
"Wolverhampton City Council","http://opendatacommunities.org/id/metropolitan-district-council/wolverhampton","705542","Midwest Electrical Services Limited","I14399","35.99","R&M - Departmental planned (external)","130194486","13/12/2017","Maintenance Programme","Centralised R&M","R2001"
"Wolverhampton City Council","http://opendatacommunities.org/id/metropolitan-district-council/wolverhampton","705542","Midwest Electrical Services Limited","I14449","23.89","R&M - Departmental planned (external)","130194819","13/12/2017","Maintenance Programme","Centralised R&M","R2001"
"Wolverhampton City Council","http://opendatacommunities.org/id/metropolitan-district-council/wolverhampton","705542","Midwest Electrical Services Limited","I14498","29.00","R&M - Departmental planned (external)","130195347","13/12/2017","Maintenance Programme","Centralised R&M","R2001"
"Wolverhampton City Council","http://opendatacommunities.org/id/metropolitan-district-council/wolverhampton","705542","Midwest Electrical Services Limited","I14401","196.21","R&M - Departmental planned (external)","130194488","13/12/2017","Maintenance Programme","Centralised R&M","R2001"
"Wolverhampton City Council","http://opendatacommunities.org/id/metropolitan-district-council/wolverhampton","705542","Midwest Electrical Services Limited","I14539","98.76","R&M - Departmental planned (external)","130196267","13/12/2017","Maintenance Programme","Centralised R&M","R2001"
"Wolverhampton City Council","http://opendatacommunities.org/id/metropolitan-district-council/wolverhampton","705542","Midwest Electrical Services Limited","I14482","43.11","R&M - Departmental planned (external)","130195552","13/12/2017","Maintenance Programme","Centralised R&M","R2001"
"Wolverhampton City Council","http://opendatacommunities.org/id/metropolitan-district-council/wolverhampton","705542","Midwest Electrical Services Limited","I14521","49.39","R&M - Departmental planned (external)","130196400","13/12/2017","Maintenance Programme","Centralised R&M","R2001"
"Wolverhampton City Council","http://opendatacommunities.org/id/metropolitan-district-council/wolverhampton","705542","Midwest Electrical Services Limited","I14773","25.80","R&M - Departmental planned (external)","130198211","27/12/2017","Adult Education","Foyer Building","R2001"
"Wolverhampton City Council","http://opendatacommunities.org/id/metropolitan-district-council/wolverhampton","705542","Midwest Electrical Services Limited","I14771","23.89","R&M - Departmental planned (external)","130198022","27/12/2017","Maintenance Programme","Centralised R&M","R2001"
"Wolverhampton City Council","http://opendatacommunities.org/id/metropolitan-district-council/wolverhampton","705542","Midwest Electrical Services Limited","I14738","56.32","R&M - Departmental planned (external)","130198013","27/12/2017","Maintenance Programme","Centralised R&M","R2001"
"Wolverhampton City Council","http://opendatacommunities.org/id/metropolitan-district-council/wolverhampton","705542","Midwest Electrical Services Limited","I14774","43.79","R&M - Departmental planned (external)","130198212","27/12/2017","Maintenance Programme","Centralised R&M","R2001"
"Wolverhampton City Council","http://opendatacommunities.org/id/metropolitan-district-council/wolverhampton","705542","Midwest Electrical Services Limited","I14737","30.74","R&M - Departmental planned (external)","130197600","27/12/2017","Schools","Pupil Referral Units - Mid Point","R2001"
"Wolverhampton City Council","http://opendatacommunities.org/id/metropolitan-district-council/wolverhampton","705542","Midwest Electrical Services Limited","I14732","140.00","R&M - Departmental planned (external)","130197596","27/12/2017","Maintenance Programme","Centralised R&M","R2001"
"Wolverhampton City Council","http://opendatacommunities.org/id/metropolitan-district-council/wolverhampton","705542","Midwest Electrical Services Limited","I14686","65.01","R&M - Departmental planned (external)","130197585","27/12/2017","Markets","Wolverhampton Indoor and Open Market","R2001"
"Wolverhampton City Council","http://opendatacommunities.org/id/metropolitan-district-council/wolverhampton","705542","Midwest Electrical Services Limited","I14688","23.89","R&M - Departmental planned (external)","130197425","27/12/2017","Facilities Management","Caretakers Community Centre","R2001"
"Wolverhampton City Council","http://opendatacommunities.org/id/metropolitan-district-council/wolverhampton","705542","Midwest Electrical Services Limited","I14697","590.00","Construction and Conversion","130197430","27/12/2017","-","Capital Maintenance - Structural Works","C1100"
"Wolverhampton City Council","http://opendatacommunities.org/id/metropolitan-district-council/wolverhampton","705542","Midwest Electrical Services Limited","I14741","151.81","R&M - Departmental planned (external)","130197603","27/12/2017","Maintenance Programme","Centralised R&M","R2001"
"Wolverhampton City Council","http://opendatacommunities.org/id/metropolitan-district-council/wolverhampton","705542","Midwest Electrical Services Limited","I14740","359.02","R&M - Departmental planned (external)","130197602","27/12/2017","Maintenance Programme","Centralised R&M","R2001"
"Wolverhampton City Council","http://opendatacommunities.org/id/metropolitan-district-council/wolverhampton","705542","Midwest Electrical Services Limited","I14724","111.69","R&M - Departmental planned (external)","130197588","27/12/2017","Maintenance Programme","Centralised R&M","R2001"
"Wolverhampton City Council","http://opendatacommunities.org/id/metropolitan-district-council/wolverhampton","705542","Midwest Electrical Services Limited","I14396","119.45","Services - Fees and Charges","130194483","08/12/2017","Revenues & Benefits","Revenues","R4401"
"Wolverhampton City Council","http://opendatacommunities.org/id/metropolitan-district-council/wolverhampton","705542","Midwest Electrical Services Limited","I14412","89.37","R&M - Departmental planned (external)","130194633","08/12/2017","Facilities Management","Old Town Hall (Others)","R2001"
"Wolverhampton City Council","http://opendatacommunities.org/id/metropolitan-district-council/wolverhampton","705542","Midwest Electrical Services Limited","I14523","142.16","R&M - Departmental planned (external)","130197580","13/12/2017","Maintenance Programme","Centralised R&M","R2001"
"Wolverhampton City Council","http://opendatacommunities.org/id/metropolitan-district-council/wolverhampton","705542","Midwest Electrical Services Limited","I14536","600.00","R&M - Departmental planned (external)","130196264","13/12/2017","Early Intervention","EIP Locality 5 � Whitmore Reans","R2001"
"Wolverhampton City Council","http://opendatacommunities.org/id/metropolitan-district-council/wolverhampton","705542","Midwest Electrical Services Limited","I14392","29.13","R&M - Departmental planned (external)","130194479","13/12/2017","Maintenance Programme","Centralised R&M","R2001"
"Wolverhampton City Council","http://opendatacommunities.org/id/metropolitan-district-council/wolverhampton","705542","Midwest Electrical Services Limited","I14402","88.45","R&M - Departmental planned (external)","130194489","13/12/2017","Maintenance Programme","Centralised R&M","R2001"
"Wolverhampton City Council","http://opendatacommunities.org/id/metropolitan-district-council/wolverhampton","705542","Midwest Electrical Services Limited","I14391","72.38","R&M - Departmental planned (external)","130194478","13/12/2017","Maintenance Programme","Centralised R&M","R2001"
"Wolverhampton City Council","http://opendatacommunities.org/id/metropolitan-district-council/wolverhampton","705542","Midwest Electrical Services Limited","I14485","110.88","R&M - Departmental planned (external)","130195342","13/12/2017","Maintenance Programme","Centralised R&M","R2001"
"Wolverhampton City Council","http://opendatacommunities.org/id/metropolitan-district-council/wolverhampton","705542","Midwest Electrical Services Limited","I14497","23.89","R&M - Departmental planned (external)","130195346","13/12/2017","Maintenance Programme","Centralised R&M","R2001"
"Wolverhampton City Council","http://opendatacommunities.org/id/metropolitan-district-council/wolverhampton","705542","Midwest Electrical Services Limited","I14499","260.00","R&M - Departmental planned (external)","130195348","13/12/2017","Maintenance Programme","Centralised R&M","R2001"
"Wolverhampton City Council","http://opendatacommunities.org/id/metropolitan-district-council/wolverhampton","705542","Midwest Electrical Services Limited","I14856","211.56","R&M - Departmental planned (external)","130198734","27/12/2017","Facilities Management","Caretakers Community Centre","R2001"
"Wolverhampton City Council","http://opendatacommunities.org/id/metropolitan-district-council/wolverhampton","705542","Midwest Electrical Services Limited","I14805","42.88","R&M - Departmental planned (external)","130198557","27/12/2017","Maintenance Programme","Centralised R&M","R2001"
"Wolverhampton City Council","http://opendatacommunities.org/id/metropolitan-district-council/wolverhampton","705542","Midwest Electrical Services Limited","I14764","100.49","R&M - Departmental planned (external)","130198015","27/12/2017","Maintenance Programme","Centralised R&M","R2001"
"Wolverhampton City Council","http://opendatacommunities.org/id/metropolitan-district-council/wolverhampton","705542","Midwest Electrical Services Limited","I14767","47.99","R&M - Departmental planned (external)","130198018","27/12/2017","Maintenance Programme","Centralised R&M","R2001"
"Wolverhampton City Council","http://opendatacommunities.org/id/metropolitan-district-council/wolverhampton","705542","Midwest Electrical Services Limited","I14816","23.89","R&M - Departmental planned (external)","130198559","27/12/2017","Maintenance Programme","Centralised R&M","R2001"
"Wolverhampton City Council","http://opendatacommunities.org/id/metropolitan-district-council/wolverhampton","705542","Midwest Electrical Services Limited","I14727","7,570.00","Construction and Conversion","130197591","27/12/2017","-","Corporate Asset Management","C1100"
"Wolverhampton City Council","http://opendatacommunities.org/id/metropolitan-district-council/wolverhampton","705542","Midwest Electrical Services Limited","I14698","684.11","R&M - Departmental planned (external)","130197431","27/12/2017","Facilities Management","Caretakers Community Centre","R2001"
"Wolverhampton City Council","http://opendatacommunities.org/id/metropolitan-district-council/wolverhampton","705542","Midwest Electrical Services Limited","I14853","176.73","R&M - Departmental planned (external)","130198733","27/12/2017","Markets","Wednesfield Street Market","R2001"
"Wolverhampton City Council","http://opendatacommunities.org/id/metropolitan-district-council/wolverhampton","705542","Midwest Electrical Services Limited","231","-433.11","R&M - Departmental planned (external)","130198998","27/12/2017","Maintenance Programme","Centralised R&M","R2001"
"Wolverhampton City Council","http://opendatacommunities.org/id/metropolitan-district-council/wolverhampton","705542","Midwest Electrical Services Limited","I14676","23.89","R&M - Departmental planned (external)","130197072","27/12/2017","Maintenance Programme","Centralised R&M","R2001"
"Wolverhampton City Council","http://opendatacommunities.org/id/metropolitan-district-council/wolverhampton","705542","Midwest Electrical Services Limited","I14723","23.89","R&M - Departmental planned (external)","130197587","27/12/2017","Maintenance Programme","Centralised R&M","R2001"
"Wolverhampton City Council","http://opendatacommunities.org/id/metropolitan-district-council/wolverhampton","705542","Midwest Electrical Services Limited","I14739","62.53","R&M - Departmental planned (external)","130197601","27/12/2017","Maintenance Programme","Centralised R&M","R2001"
"Wolverhampton City Council","http://opendatacommunities.org/id/metropolitan-district-council/wolverhampton","705542","Midwest Electrical Services Limited","I14729","125.92","R&M - Departmental planned (external)","130197593","27/12/2017","Maintenance Programme","Centralised R&M","R2001"
"Wolverhampton City Council","http://opendatacommunities.org/id/metropolitan-district-council/wolverhampton","705542","Midwest Electrical Services Limited","I14375","35.69","R&M - Departmental planned (external)","130194350","08/12/2017","Facilities Management","Magistrates","R2001"
"Wolverhampton City Council","http://opendatacommunities.org/id/metropolitan-district-council/wolverhampton","705542","Midwest Electrical Services Limited","I14484","101.52","R&M - Departmental planned (external)","130195553","06/12/2017","Facilities Management","Caretakers Community Centre","R2001"
"Wolverhampton City Council","http://opendatacommunities.org/id/metropolitan-district-council/wolverhampton","705542","Midwest Electrical Services Limited","I14440","130.56","R&M - Departmental planned (external)","130194639","06/12/2017","Facilities Management","Caretakers Community Centre","R2001"
"Wolverhampton City Council","http://opendatacommunities.org/id/metropolitan-district-council/wolverhampton","705542","Midwest Electrical Services Limited","I14393","48.82","R&M - Departmental planned (external)","130194480","06/12/2017","Bereavement Services","Cemeteries","R2001"
"Wolverhampton City Council","http://opendatacommunities.org/id/metropolitan-district-council/wolverhampton","705542","Midwest Electrical Services Limited","I14398","84.45","R&M - Departmental planned (external)","130194485","06/12/2017","Facilities Management","Hickman Avenue Depot","R2001"
"Wolverhampton City Council","http://opendatacommunities.org/id/metropolitan-district-council/wolverhampton","705542","Midwest Electrical Services Limited","I14623","42.88","R&M - Departmental planned (external)","130196758","20/12/2017","Facilities Management","Hickman Avenue Depot","R2001"
"Wolverhampton City Council","http://opendatacommunities.org/id/metropolitan-district-council/wolverhampton","705542","Midwest Electrical Services Limited","I14582","29.13","R&M - Departmental planned (external)","130196532","20/12/2017","Maintenance Programme","Centralised R&M","R2001"
"Wolverhampton City Council","http://opendatacommunities.org/id/metropolitan-district-council/wolverhampton","705542","Midwest Electrical Services Limited","I14606","182.79","R&M - Departmental planned (external)","130196536","20/12/2017","Maintenance Programme","Centralised R&M","R2001"
"Wolverhampton City Council","http://opendatacommunities.org/id/metropolitan-district-council/wolverhampton","705542","Midwest Electrical Services Limited","I14659","52.56","R&M - Departmental planned (external)","130196942","20/12/2017","Facilities Management","Culwell Street Depot","R2001"
"Wolverhampton City Council","http://opendatacommunities.org/id/metropolitan-district-council/wolverhampton","705542","Midwest Electrical Services Limited","I14636","23.89","R&M - Departmental planned (external)","130196761","20/12/2017","Maintenance Programme","Centralised R&M","R2001"
"Wolverhampton City Council","http://opendatacommunities.org/id/metropolitan-district-council/wolverhampton","705542","Midwest Electrical Services Limited","I14656","1,392.34","R&M - Departmental planned (external)","130197269","20/12/2017","Maintenance Programme","Centralised R&M","R2001"
"Wolverhampton City Council","http://opendatacommunities.org/id/metropolitan-district-council/wolverhampton","705542","Midwest Electrical Services Limited","I14411","55.74","R&M - Departmental planned (external)","130194632","08/12/2017","Facilities Management","Caretakers Community Centre","R2001"
"Wolverhampton City Council","http://opendatacommunities.org/id/metropolitan-district-council/wolverhampton","705542","Midwest Electrical Services Limited","I14394","33.84","R&M - Departmental planned (external)","130194481","13/12/2017","Maintenance Programme","Centralised R&M","R2001"
"Wolverhampton City Council","http://opendatacommunities.org/id/metropolitan-district-council/wolverhampton","705542","Midwest Electrical Services Limited","I14376","59.29","R&M - Departmental planned (external)","130194351","13/12/2017","Maintenance Programme","Centralised R&M","R2001"
"Wolverhampton City Council","http://opendatacommunities.org/id/metropolitan-district-council/wolverhampton","705542","Midwest Electrical Services Limited","I14400","472.34","R&M - Departmental planned (external)","130194487","13/12/2017","Maintenance Programme","Centralised R&M","R2001"
"Wolverhampton City Council","http://opendatacommunities.org/id/metropolitan-district-council/wolverhampton","705542","Midwest Electrical Services Limited","I14491","23.89","R&M - Departmental planned (external)","130195345","13/12/2017","Maintenance Programme","Centralised R&M","R2001"
"Wolverhampton City Council","http://opendatacommunities.org/id/metropolitan-district-council/wolverhampton","705542","Midwest Electrical Services Limited","I14571","76.83","R&M - Departmental planned (external)","130196269","13/12/2017","Maintenance Programme","Centralised R&M","R2001"
"Wolverhampton City Council","http://opendatacommunities.org/id/metropolitan-district-council/wolverhampton","705542","Midwest Electrical Services Limited","I14535","49.16","R&M - Departmental planned (external)","130196263","13/12/2017","Maintenance Programme","Centralised R&M","R2001"
"Wolverhampton City Council","http://opendatacommunities.org/id/metropolitan-district-council/wolverhampton","705542","Midwest Electrical Services Limited","I14578","98.30","R&M - Departmental planned (external)","130196270","13/12/2017","Maintenance Programme","Centralised R&M","R2001"
"Wolverhampton City Council","http://opendatacommunities.org/id/metropolitan-district-council/wolverhampton","705542","Midwest Electrical Services Limited","I14420","23.89","R&M - Departmental planned (external)","130198556","13/12/2017","Facilities Management","Caretakers Community Centre","R2001"
"Wolverhampton City Council","http://opendatacommunities.org/id/metropolitan-district-council/wolverhampton","705542","Midwest Electrical Services Limited","I14689","26.83","R&M - Departmental planned (external)","130197426","27/12/2017","Maintenance Programme","Centralised R&M","R2001"
"Wolverhampton City Council","http://opendatacommunities.org/id/metropolitan-district-council/wolverhampton","705542","Midwest Electrical Services Limited","I14812","110.09","R&M - Departmental planned (external)","130198558","27/12/2017","Facilities Management","Culwell Street Depot","R2001"
"Wolverhampton City Council","http://opendatacommunities.org/id/metropolitan-district-council/wolverhampton","705542","Midwest Electrical Services Limited","I14690","23.89","R&M - Departmental planned (external)","130197427","27/12/2017","Maintenance Programme","Centralised R&M","R2001"
"Wolverhampton City Council","http://opendatacommunities.org/id/metropolitan-district-council/wolverhampton","705542","Midwest Electrical Services Limited","I14736","76.77","R&M - Departmental planned (external)","130197599","27/12/2017","Maintenance Programme","Centralised R&M","R2001"
"Wolverhampton City Council","http://opendatacommunities.org/id/metropolitan-district-council/wolverhampton","705542","Midwest Electrical Services Limited","I14776","24.81","R&M - Departmental planned (external)","130198214","27/12/2017","Facilities Management","Caretakers Community Centre","R2001"
"Wolverhampton City Council","http://opendatacommunities.org/id/metropolitan-district-council/wolverhampton","705542","Midwest Electrical Services Limited","I14775","23.89","R&M - Departmental planned (external)","130198213","27/12/2017","Facilities Management","i10 Facilities Management","R2001"
"Wolverhampton City Council","http://opendatacommunities.org/id/metropolitan-district-council/wolverhampton","705542","Midwest Electrical Services Limited","I14772","149.43","R&M - Departmental planned (external)","130198210","27/12/2017","Maintenance Programme","Centralised R&M","R2001"
"Wolverhampton City Council","http://opendatacommunities.org/id/metropolitan-district-council/wolverhampton","705542","Midwest Electrical Services Limited","I14745","330.52","R&M - Departmental planned (external)","130198014","27/12/2017","Maintenance Programme","Centralised R&M","R2001"
"Wolverhampton City Council","http://opendatacommunities.org/id/metropolitan-district-council/wolverhampton","705542","Midwest Electrical Services Limited","I14777","42.88","R&M - Departmental planned (external)","130198215","27/12/2017","Maintenance Programme","Centralised R&M","R2001"
"Wolverhampton City Council","http://opendatacommunities.org/id/metropolitan-district-council/wolverhampton","705542","Midwest Electrical Services Limited","I14733","63.74","R&M - Departmental planned (external)","130197597","27/12/2017","Facilities Management","Victoria Square, Block 11","R2001"
"Wolverhampton City Council","http://opendatacommunities.org/id/metropolitan-district-council/wolverhampton","705542","Midwest Electrical Services Limited","I14742","132.90","R&M - Departmental planned (external)","130197604","27/12/2017","Markets","Bilston Market and Licensed Operations","R2001"
"Wolverhampton City Council","http://opendatacommunities.org/id/metropolitan-district-council/wolverhampton","705542","Midwest Electrical Services Limited","I14728","617.28","R&M - Departmental planned (external)","130197592","27/12/2017","Maintenance Programme","Centralised R&M","R2001"
"Wolverhampton City Council","http://opendatacommunities.org/id/metropolitan-district-council/wolverhampton","705542","Midwest Electrical Services Limited","I14490","91.28","R&M - Departmental planned (external)","130195344","06/12/2017","Facilities Management","Magistrates","R2001"
"Wolverhampton City Council","http://opendatacommunities.org/id/metropolitan-district-council/wolverhampton","705542","Midwest Electrical Services Limited","I14448","33.84","R&M - Departmental planned (external)","130194818","06/12/2017","Facilities Management","Caretakers Community Centre","R2001"
"Wolverhampton City Council","http://opendatacommunities.org/id/metropolitan-district-council/wolverhampton","705542","Midwest Electrical Services Limited","I14439","181.00","R&M - Departmental planned (external)","130194638","06/12/2017","Maintenance Programme","Centralised R&M","R2001"
"Wolverhampton City Council","http://opendatacommunities.org/id/metropolitan-district-council/wolverhampton","705542","Midwest Electrical Services Limited","I14421","87.82","R&M - Departmental planned (external)","130194815","06/12/2017","Markets","Wholesale Market Facilities Management","R2001"
"Wolverhampton City Council","http://opendatacommunities.org/id/metropolitan-district-council/wolverhampton","705542","Midwest Electrical Services Limited","I14514","82.60","R&M - Departmental planned (external)","130195706","06/12/2017","Maintenance Programme","Centralised R&M","R2001"
"Wolverhampton City Council","http://opendatacommunities.org/id/metropolitan-district-council/wolverhampton","705542","Midwest Electrical Services Limited","I14619","53.75","R&M - Departmental planned (external)","130196757","20/12/2017","Facilities Management","Caretakers Community Centre","R2001"
"Wolverhampton City Council","http://opendatacommunities.org/id/metropolitan-district-council/wolverhampton","705542","Midwest Electrical Services Limited","I14616","23.89","R&M - Departmental planned (external)","130196539","20/12/2017","Maintenance Programme","Centralised R&M","R2001"
"Wolverhampton City Council","http://opendatacommunities.org/id/metropolitan-district-council/wolverhampton","705542","Midwest Electrical Services Limited","I14618","34.24","R&M - Departmental planned (external)","130196540","20/12/2017","Maintenance Programme","Centralised R&M","R2001"
"Wolverhampton City Council","http://opendatacommunities.org/id/metropolitan-district-council/wolverhampton","705542","Midwest Electrical Services Limited","I14622","78.77","R&M - Departmental planned (external)","130197583","20/12/2017","Licensing","Licensing - Street Trading","R2001"
"Wolverhampton City Council","http://opendatacommunities.org/id/metropolitan-district-council/wolverhampton","705542","Midwest Electrical Services Limited","I14611","226.81","R&M - Departmental planned (external)","130196537","20/12/2017","Bereavement Services","Cemeteries","R2001"
"Wolverhampton City Council","http://opendatacommunities.org/id/metropolitan-district-council/wolverhampton","705542","Midwest Electrical Services Limited","I14586","504.55","R&M - Departmental planned (external)","130196535","20/12/2017","Maintenance Programme","Centralised R&M","R2001"
"Wolverhampton City Council","http://opendatacommunities.org/id/metropolitan-district-council/wolverhampton","705543","Arnold Clark Auto Ltd t/a M M Factors","447119-BI","9.74","Equipment - Purchase","190400150","06/12/2017","Fleet Services","Fleet Management","R4000"
"Wolverhampton City Council","http://opendatacommunities.org/id/metropolitan-district-council/wolverhampton","705543","Arnold Clark Auto Ltd t/a M M Factors","449965-BI","5.76","Equipment - Purchase","190402030","13/12/2017","Fleet Services","Fleet Management","R4000"
"Wolverhampton City Council","http://opendatacommunities.org/id/metropolitan-district-council/wolverhampton","705543","Arnold Clark Auto Ltd t/a M M Factors","449965-BI","3.32","Equipment - Purchase","190402030","13/12/2017","Fleet Services","Fleet Management","R4000"
"Wolverhampton City Council","http://opendatacommunities.org/id/metropolitan-district-council/wolverhampton","705548","Mike Tivey","SFH1/11/2017","180.00","Services - Professional Fees","130200682","29/12/2017","Early Intervention","EIP Locality 1 - Eastfields","R4400"
"Wolverhampton City Council","http://opendatacommunities.org/id/metropolitan-district-council/wolverhampton","705548","Mike Tivey","SFH1/9/2017","320.00","Services - Professional Fees","130195167","06/12/2017","Early Intervention","EIP Locality 1 - Eastfields","R4400"
"Wolverhampton City Council","http://opendatacommunities.org/id/metropolitan-district-council/wolverhampton","705548","Mike Tivey","SFH2/011/17","170.00","Services - Professional Fees","130200683","29/12/2017","Early Intervention","EIP Locality 2 � Bilston/Rocket Pool","R4400"
"Wolverhampton City Council","http://opendatacommunities.org/id/metropolitan-district-council/wolverhampton","705548","Mike Tivey","SFH2/009/17","120.00","Services - Professional Fees","130195168","06/12/2017","Early Intervention","EIP Locality 2 � Bilston/Rocket Pool","R4400"
"Wolverhampton City Council","http://opendatacommunities.org/id/metropolitan-district-council/wolverhampton","705548","Mike Tivey","SFH7/11/17","270.00","Services - Professional Fees","130200684","29/12/2017","Early Intervention","EIP Locality 7 � Low Hill","R4400"
"Wolverhampton City Council","http://opendatacommunities.org/id/metropolitan-district-council/wolverhampton","705592","Mitchell Diesel Limited","129386","25.88","Equipment - Purchase","190404638","20/12/2017","Fleet Services","Fleet Management","R4000"
"Wolverhampton City Council","http://opendatacommunities.org/id/metropolitan-district-council/wolverhampton","705592","Mitchell Diesel Limited","129386","50.79","Equipment - Purchase","190404638","20/12/2017","Fleet Services","Fleet Management","R4000"
"Wolverhampton City Council","http://opendatacommunities.org/id/metropolitan-district-council/wolverhampton","705592","Mitchell Diesel Limited","129386","8.10","Equipment - Purchase","190404638","20/12/2017","Fleet Services","Fleet Management","R4000"
"Wolverhampton City Council","http://opendatacommunities.org/id/metropolitan-district-council/wolverhampton","705592","Mitchell Diesel Limited","129386","2.93","Equipment - Purchase","190404638","20/12/2017","Fleet Services","Fleet Management","R4000"
"Wolverhampton City Council","http://opendatacommunities.org/id/metropolitan-district-council/wolverhampton","705592","Mitchell Diesel Limited","129386","25.88","Equipment - Purchase","190404638","20/12/2017","Fleet Services","Fleet Management","R4000"
"Wolverhampton City Council","http://opendatacommunities.org/id/metropolitan-district-council/wolverhampton","705592","Mitchell Diesel Limited","129386","28.34","Equipment - Purchase","190404638","20/12/2017","Fleet Services","Fleet Management","R4000"
"Wolverhampton City Council","http://opendatacommunities.org/id/metropolitan-district-council/wolverhampton","705592","Mitchell Diesel Limited","129386","4.69","Equipment - Purchase","190404638","20/12/2017","Fleet Services","Fleet Management","R4000"
"Wolverhampton City Council","http://opendatacommunities.org/id/metropolitan-district-council/wolverhampton","705592","Mitchell Diesel Limited","129386","1.57","Equipment - Purchase","190404638","20/12/2017","Fleet Services","Fleet Management","R4000"
"Wolverhampton City Council","http://opendatacommunities.org/id/metropolitan-district-council/wolverhampton","705592","Mitchell Diesel Limited","128996","23.31","Equipment - Purchase","190400133","06/12/2017","Fleet Services","Fleet Management","R4000"
"Wolverhampton City Council","http://opendatacommunities.org/id/metropolitan-district-council/wolverhampton","705592","Mitchell Diesel Limited","129429","156.97","Equipment - Purchase","190405259","21/12/2017","Fleet Services","Fleet Management","R4000"
"Wolverhampton City Council","http://opendatacommunities.org/id/metropolitan-district-council/wolverhampton","705592","Mitchell Diesel Limited","129429","31.40","Equipment - Purchase","190405259","21/12/2017","Fleet Services","Fleet Management","R4000"
"Wolverhampton City Council","http://opendatacommunities.org/id/metropolitan-district-council/wolverhampton","705592","Mitchell Diesel Limited","129429","38.27","Equipment - Purchase","190405259","21/12/2017","Fleet Services","Fleet Management","R4000"
"Wolverhampton City Council","http://opendatacommunities.org/id/metropolitan-district-council/wolverhampton","705592","Mitchell Diesel Limited","129429","13.70","Equipment - Purchase","190405259","21/12/2017","Fleet Services","Fleet Management","R4000"
"Wolverhampton City Council","http://opendatacommunities.org/id/metropolitan-district-council/wolverhampton","705592","Mitchell Diesel Limited","129429","13.37","Equipment - Purchase","190405259","21/12/2017","Fleet Services","Fleet Management","R4000"
"Wolverhampton City Council","http://opendatacommunities.org/id/metropolitan-district-council/wolverhampton","705592","Mitchell Diesel Limited","129222","35.62","Equipment - Purchase","190402001","13/12/2017","Fleet Services","Fleet Management","R4000"
"Wolverhampton City Council","http://opendatacommunities.org/id/metropolitan-district-council/wolverhampton","705592","Mitchell Diesel Limited","128953","32.50","Equipment - Purchase","190400132","06/12/2017","Fleet Services","Fleet Management","R4000"
"Wolverhampton City Council","http://opendatacommunities.org/id/metropolitan-district-council/wolverhampton","705592","Mitchell Diesel Limited","128953","11.70","Equipment - Purchase","190400132","06/12/2017","Fleet Services","Fleet Management","R4000"
"Wolverhampton City Council","http://opendatacommunities.org/id/metropolitan-district-council/wolverhampton","705592","Mitchell Diesel Limited","128953","39.92","Equipment - Purchase","190400132","06/12/2017","Fleet Services","Fleet Management","R4000"
"Wolverhampton City Council","http://opendatacommunities.org/id/metropolitan-district-council/wolverhampton","705592","Mitchell Diesel Limited","128953","32.13","Equipment - Purchase","190400132","06/12/2017","Fleet Services","Fleet Management","R4000"
"Wolverhampton City Council","http://opendatacommunities.org/id/metropolitan-district-council/wolverhampton","705592","Mitchell Diesel Limited","128953","12.07","Equipment - Purchase","190400132","06/12/2017","Fleet Services","Fleet Management","R4000"
"Wolverhampton City Council","http://opendatacommunities.org/id/metropolitan-district-council/wolverhampton","705592","Mitchell Diesel Limited","129183","26.03","Equipment - Purchase","190402000","13/12/2017","Fleet Services","Fleet Management","R4000"
"Wolverhampton City Council","http://opendatacommunities.org/id/metropolitan-district-council/wolverhampton","705592","Mitchell Diesel Limited","129183","7.46","Equipment - Purchase","190402000","13/12/2017","Fleet Services","Fleet Management","R4000"
"Wolverhampton City Council","http://opendatacommunities.org/id/metropolitan-district-council/wolverhampton","705609","Mobile Mini UK Limited","7000629963","43.20","Equipment - Hire","130195897","06/12/2017","Leisure Services","Aldersley Leisure Village","R4001"
"Wolverhampton City Council","http://opendatacommunities.org/id/metropolitan-district-council/wolverhampton","705609","Mobile Mini UK Limited","7000629964","43.20","Hire of Plant","130195707","08/12/2017","Environmental Maintenance","Ground Maintenance West","R3201"
"Wolverhampton City Council","http://opendatacommunities.org/id/metropolitan-district-council/wolverhampton","705609","Mobile Mini UK Limited","7000624469","50.00","Hire of Plant","130194962","01/12/2017","Environmental Maintenance","Ground Maintenance West","R3201"
"Wolverhampton City Council","http://opendatacommunities.org/id/metropolitan-district-council/wolverhampton","705609","Mobile Mini UK Limited","7000658663","50.00","Hire of Plant","130198561","29/12/2017","Environmental Maintenance","Ground Maintenance West","R3201"
"Wolverhampton City Council","http://opendatacommunities.org/id/metropolitan-district-council/wolverhampton","705634","Morelock Signs Limited","0000201924","259.56","Materials","130195169","06/12/2017","Highways Maintenance","Signs Non Illuminated","R4007"
"Wolverhampton City Council","http://opendatacommunities.org/id/metropolitan-district-council/wolverhampton","705634","Morelock Signs Limited","0000202200","798.75","Construction and Conversion","130196271","13/12/2017","-","Safety Programme","C1100"
"Wolverhampton City Council","http://opendatacommunities.org/id/metropolitan-district-council/wolverhampton","705634","Morelock Signs Limited","0000202697","618.88","Materials","130197792","27/12/2017","Street Lighting","Signs Illuminated","R4007"
"Wolverhampton City Council","http://opendatacommunities.org/id/metropolitan-district-council/wolverhampton","705644","Moseley Park School","5100053","10,526.38","Services - Professional Fees","130198960","13/12/2017","School Planning & Resources","Schools Supply Cover:Union dut.secondary","R4400"
"Wolverhampton City Council","http://opendatacommunities.org/id/metropolitan-district-council/wolverhampton","705644","Moseley Park School","5100053","-10,526.38","Services - Professional Fees","130198960","13/12/2017","School Planning & Resources","Schools Supply Cover:Union dut.secondary","R4400"
"Wolverhampton City Council","http://opendatacommunities.org/id/metropolitan-district-council/wolverhampton","705644","Moseley Park School","5100053","10,526.38","Services - Professional Fees","130198960","13/12/2017","School Planning & Resources","Schools Supply Cover:Union dut.secondary","R4400"
"Wolverhampton City Council","http://opendatacommunities.org/id/metropolitan-district-council/wolverhampton","705644","Moseley Park School","5100055","8,816.37","Services - Professional Fees","130198963","13/12/2017","School Planning & Resources","Schools Supply Cover:Union dut.secondary","R4400"
"Wolverhampton City Council","http://opendatacommunities.org/id/metropolitan-district-council/wolverhampton","705644","Moseley Park School","5100055","8,816.37","Services - Professional Fees","130198963","13/12/2017","School Planning & Resources","Schools Supply Cover:Union dut.secondary","R4400"
"Wolverhampton City Council","http://opendatacommunities.org/id/metropolitan-district-council/wolverhampton","705644","Moseley Park School","5100055","-8,816.37","Services - Professional Fees","130198963","13/12/2017","School Planning & Resources","Schools Supply Cover:Union dut.secondary","R4400"
"Wolverhampton City Council","http://opendatacommunities.org/id/metropolitan-district-council/wolverhampton","705644","Moseley Park School","5100054","11,761.03","Services - Professional Fees","130198962","13/12/2017","School Planning & Resources","Schools Supply Cover:Union dut.secondary","R4400"
"Wolverhampton City Council","http://opendatacommunities.org/id/metropolitan-district-council/wolverhampton","705644","Moseley Park School","5100054","-11,761.03","Services - Professional Fees","130198962","13/12/2017","School Planning & Resources","Schools Supply Cover:Union dut.secondary","R4400"
"Wolverhampton City Council","http://opendatacommunities.org/id/metropolitan-district-council/wolverhampton","705644","Moseley Park School","5100054","11,761.03","Services - Professional Fees","130198962","13/12/2017","School Planning & Resources","Schools Supply Cover:Union dut.secondary","R4400"
"Wolverhampton City Council","http://opendatacommunities.org/id/metropolitan-district-council/wolverhampton","705670","Mr B Whitney","17/18/W201","200.00","Training Expenses","130198216","06/12/2017","Specialist Support","Vulnerable Young Persons Team","R1650"
"Wolverhampton City Council","http://opendatacommunities.org/id/metropolitan-district-council/wolverhampton","705680","M-R-S Communications Limited","1173594","130.00","Comms - Radios","130198218","13/12/2017","Licensing","Licensing - H.Carriage/Pr.Hire Vehicles","R4508"
"Wolverhampton City Council","http://opendatacommunities.org/id/metropolitan-district-council/wolverhampton","705680","M-R-S Communications Limited","1173591","130.00","Equipment - R & M","130198217","13/12/2017","Operation & Maintenance of Existing Network","UTC Wolverhampton","R4003"
"Wolverhampton City Council","http://opendatacommunities.org/id/metropolitan-district-council/wolverhampton","705680","M-R-S Communications Limited","1173506","130.00","Services - Security","130199194","20/12/2017","Strategic Organisation Development","Global Budgets","R4405"
"Wolverhampton City Council","http://opendatacommunities.org/id/metropolitan-district-council/wolverhampton","705680","M-R-S Communications Limited","1173595","130.00","Comms - Radios","130198219","13/12/2017","Licensing","Licensing - H.Carriage/Pr.Hire Vehicles","R4508"
"Wolverhampton City Council","http://opendatacommunities.org/id/metropolitan-district-council/wolverhampton","705680","M-R-S Communications Limited","1173237","130.00","Comms - Radios","130199193","20/12/2017","Parking Services","Shopmobility","R4508"
"Wolverhampton City Council","http://opendatacommunities.org/id/metropolitan-district-council/wolverhampton","705742","N. D. Brown Limited","116553","64.94","Hire of Vehicles","190406296","29/12/2017","Fleet Services","Fleet Management","R3200"
"Wolverhampton City Council","http://opendatacommunities.org/id/metropolitan-district-council/wolverhampton","705742","N. D. Brown Limited","116530","413.00","Hire of Vehicles","190406295","29/12/2017","Fleet Services","Fleet Management","R3200"
"Wolverhampton City Council","http://opendatacommunities.org/id/metropolitan-district-council/wolverhampton","705745","Naace (Trading) Limited","SRF005138 - Bacs Rejection","50.00","Schools SLA - Bought in Professional Services - Curriculum","130198485","08/12/2017","Schools","Bilston Church of England Primary School","R7042"
"Wolverhampton City Council","http://opendatacommunities.org/id/metropolitan-district-council/wolverhampton","705748","Nacro","SIO/008256","365,002.75","TPP - Public Health Contracts","130196272","06/12/2017","Contracts","Alcohol and Drug","R5060"
"Wolverhampton City Council","http://opendatacommunities.org/id/metropolitan-district-council/wolverhampton","705748","Nacro","SIO/0082822","6,248.92","TPP - Other","130196764","20/12/2017","Early Intervention","Vulnerable Women","R5010"
"Wolverhampton City Council","http://opendatacommunities.org/id/metropolitan-district-council/wolverhampton","705751","Nalco Limited","9400467352","412.50","R&M - Departmental planned (external)","130196273","06/12/2017","Maintenance Programme","Civic Centre Repairs & Maintenance","R2001"
"Wolverhampton City Council","http://opendatacommunities.org/id/metropolitan-district-council/wolverhampton","705830","Neopost Limited","92389770","53.85","Equipment - R & M","130196944","20/12/2017","ICTS","Document Centre - General","R4003"
"Wolverhampton City Council","http://opendatacommunities.org/id/metropolitan-district-council/wolverhampton","705830","Neopost Limited","92363686","47.70","Equipment - R & M","130186192","20/12/2017","ICTS","Document Centre - General","R4003"
"Wolverhampton City Council","http://opendatacommunities.org/id/metropolitan-district-council/wolverhampton","705838","Network Rail Infrastr.Limited (Property)","1218736","5,026.57","External Professional Fees","130198024","15/12/2017","-","GF - Interchange - Ph2 Train Station/MSCP/Metro Extension","C6002"
"Wolverhampton City Council","http://opendatacommunities.org/id/metropolitan-district-council/wolverhampton","705838","Network Rail Infrastr.Limited (Property)","1218830","-12,881.38","External Professional Fees","130196403","15/12/2017","-","GF - Interchange - Ph2 Train Station/MSCP/Metro Extension","C6002"
"Wolverhampton City Council","http://opendatacommunities.org/id/metropolitan-district-council/wolverhampton","705838","Network Rail Infrastr.Limited (Property)","1217070","53.03","External Professional Fees","130196402","15/12/2017","-","GF - Interchange - Ph2 Train Station/MSCP/Metro Extension","C6002"
"Wolverhampton City Council","http://opendatacommunities.org/id/metropolitan-district-council/wolverhampton","705838","Network Rail Infrastr.Limited (Property)","1219498","1,497.67","External Professional Fees","130197605","15/12/2017","-","GF - Interchange - Ph2 Train Station/MSCP/Metro Extension","C6002"
"Wolverhampton City Council","http://opendatacommunities.org/id/metropolitan-district-council/wolverhampton","705838","Network Rail Infrastr.Limited (Property)","1219741","32,325.48","External Professional Fees","130197606","15/12/2017","-","GF - Interchange - Ph2 Train Station/MSCP/Metro Extension","C6002"
"Wolverhampton City Council","http://opendatacommunities.org/id/metropolitan-district-council/wolverhampton","705855","Newbridge Preparatory School","NEF Autumn 2017 INST 2","15,376.75","TPP - Private Nursery Education Funding","190403399","15/12/2017","Early Years","Early Years Universal Entitlement for 3 and 4 Year Olds","R5035"
"Wolverhampton City Council","http://opendatacommunities.org/id/metropolitan-district-council/wolverhampton","705861","Newhampton Arts Centre","3472","225.00","Catering","130198396","08/12/2017","Human Resources","Workforce Development","R4100"
"Wolverhampton City Council","http://opendatacommunities.org/id/metropolitan-district-council/wolverhampton","705861","Newhampton Arts Centre","3472","360.00","Room Hire","130198396","08/12/2017","Human Resources","Workforce Development","R2201"
"Wolverhampton City Council","http://opendatacommunities.org/id/metropolitan-district-council/wolverhampton","705861","Newhampton Arts Centre","3472","225.00","Catering","130198396","08/12/2017","Human Resources","Workforce Development","R4100"
"Wolverhampton City Council","http://opendatacommunities.org/id/metropolitan-district-council/wolverhampton","705861","Newhampton Arts Centre","3472","-225.00","Catering","130198396","08/12/2017","Human Resources","Workforce Development","R4100"
"Wolverhampton City Council","http://opendatacommunities.org/id/metropolitan-district-council/wolverhampton","705869","Newstart Networks Cic","NSN31/2017 - 2018","970.00","Direct Work With Children","130197607","06/12/2017","Child Protection","CIN/CP Social Work Unit - Area 7","R6310"
"Wolverhampton City Council","http://opendatacommunities.org/id/metropolitan-district-council/wolverhampton","705899","Nikki Downes","NEF Autumn 2017 INST 2","1,785.00","TPP - Private Nursery Education Funding","190403399","15/12/2017","Early Years","Early Years Universal Entitlement for 3 and 4 Year Olds","R5035"
"Wolverhampton City Council","http://opendatacommunities.org/id/metropolitan-district-council/wolverhampton","705900","Nilfisk Advance Limited T/A Nilfisk-Icm","3024278790","382.08","R&M - Departmental planned (internal)","130198025","27/12/2017","Leisure Services","Aldersley Leisure Village","R2000"
"Wolverhampton City Council","http://opendatacommunities.org/id/metropolitan-district-council/wolverhampton","705904","Nisbets PLC","15714938","35.99","Equipment - Purchase","130194964","06/12/2017","Learning Disability Provider","Duke Street Bungalows","R4000"
"Wolverhampton City Council","http://opendatacommunities.org/id/metropolitan-district-council/wolverhampton","705904","Nisbets PLC","15714938","26.99","Equipment - Purchase","130194964","06/12/2017","Learning Disability Provider","Duke Street Bungalows","R4000"
"Wolverhampton City Council","http://opendatacommunities.org/id/metropolitan-district-council/wolverhampton","705904","Nisbets PLC","15079833","829.99","Equipment - Purchase","130199087","15/12/2017","Specialist Support","Upper Pendeford Farm Short Breaks Centre","R4000"
"Wolverhampton City Council","http://opendatacommunities.org/id/metropolitan-district-council/wolverhampton","705907","NJB Physiotherapy Limited","57911","21.00","Services - Professional Fees","130197439","06/12/2017","Human Resources","HR Advice","R4400"
"Wolverhampton City Council","http://opendatacommunities.org/id/metropolitan-district-council/wolverhampton","705907","NJB Physiotherapy Limited","57891","85.00","Services - Professional Fees","130197437","06/12/2017","Human Resources","HR Advice","R4400"
"Wolverhampton City Council","http://opendatacommunities.org/id/metropolitan-district-council/wolverhampton","705907","NJB Physiotherapy Limited","57774","85.00","Services - Professional Fees","130196406","06/12/2017","Human Resources","HR Advice","R4400"
"Wolverhampton City Council","http://opendatacommunities.org/id/metropolitan-district-council/wolverhampton","705907","NJB Physiotherapy Limited","57610","85.00","Services - Professional Fees","130194645","06/12/2017","Human Resources","HR Advice","R4400"
"Wolverhampton City Council","http://opendatacommunities.org/id/metropolitan-district-council/wolverhampton","705907","NJB Physiotherapy Limited","57825","85.00","Services - Professional Fees","130197433","06/12/2017","Human Resources","HR Advice","R4400"
"Wolverhampton City Council","http://opendatacommunities.org/id/metropolitan-district-council/wolverhampton","705907","NJB Physiotherapy Limited","57967","126.00","Services - Professional Fees","130198403","13/12/2017","Human Resources","HR Advice","R4400"
"Wolverhampton City Council","http://opendatacommunities.org/id/metropolitan-district-council/wolverhampton","705907","NJB Physiotherapy Limited","57839","63.00","Services - Professional Fees","130196415","06/12/2017","Human Resources","HR Advice","R4400"
"Wolverhampton City Council","http://opendatacommunities.org/id/metropolitan-district-council/wolverhampton","705907","NJB Physiotherapy Limited","57823","85.00","Services - Professional Fees","130196413","06/12/2017","Human Resources","HR Advice","R4400"
"Wolverhampton City Council","http://opendatacommunities.org/id/metropolitan-district-council/wolverhampton","705907","NJB Physiotherapy Limited","57890","85.00","Services - Professional Fees","130197436","06/12/2017","Human Resources","HR Advice","R4400"
"Wolverhampton City Council","http://opendatacommunities.org/id/metropolitan-district-council/wolverhampton","705907","NJB Physiotherapy Limited","57800","105.00","Services - Professional Fees","130196410","06/12/2017","Human Resources","HR Advice","R4400"
"Wolverhampton City Council","http://opendatacommunities.org/id/metropolitan-district-council/wolverhampton","705907","NJB Physiotherapy Limited","57773","85.00","Services - Professional Fees","130196405","06/12/2017","Human Resources","HR Advice","R4400"
"Wolverhampton City Council","http://opendatacommunities.org/id/metropolitan-district-council/wolverhampton","705907","NJB Physiotherapy Limited","57796","85.00","Services - Professional Fees","130197432","01/12/2017","Human Resources","HR Advice","R4400"
"Wolverhampton City Council","http://opendatacommunities.org/id/metropolitan-district-council/wolverhampton","705907","NJB Physiotherapy Limited","57968","168.00","Services - Professional Fees","130198404","13/12/2017","Human Resources","HR Advice","R4400"
"Wolverhampton City Council","http://opendatacommunities.org/id/metropolitan-district-council/wolverhampton","705907","NJB Physiotherapy Limited","57966","84.00","Services - Professional Fees","130198402","13/12/2017","Human Resources","HR Advice","R4400"
"Wolverhampton City Council","http://opendatacommunities.org/id/metropolitan-district-council/wolverhampton","705907","NJB Physiotherapy Limited","57946","85.00","Services - Professional Fees","130198399","13/12/2017","Human Resources","HR Advice","R4400"
"Wolverhampton City Council","http://opendatacommunities.org/id/metropolitan-district-council/wolverhampton","705907","NJB Physiotherapy Limited","57595","85.00","Services - Professional Fees","130194644","06/12/2017","Human Resources","HR Advice","R4400"
"Wolverhampton City Council","http://opendatacommunities.org/id/metropolitan-district-council/wolverhampton","705907","NJB Physiotherapy Limited","57944","85.00","Services - Professional Fees","130198398","08/12/2017","Human Resources","HR Advice","R4400"
"Wolverhampton City Council","http://opendatacommunities.org/id/metropolitan-district-council/wolverhampton","705907","NJB Physiotherapy Limited","57892","85.00","Services - Professional Fees","130197438","06/12/2017","Human Resources","HR Advice","R4400"
"Wolverhampton City Council","http://opendatacommunities.org/id/metropolitan-district-council/wolverhampton","705907","NJB Physiotherapy Limited","57624","85.00","Services - Professional Fees","130194646","06/12/2017","Human Resources","HR Advice","R4400"
"Wolverhampton City Council","http://opendatacommunities.org/id/metropolitan-district-council/wolverhampton","705907","NJB Physiotherapy Limited","57775","85.00","Services - Professional Fees","130196407","06/12/2017","Human Resources","HR Advice","R4400"
"Wolverhampton City Council","http://opendatacommunities.org/id/metropolitan-district-council/wolverhampton","705907","NJB Physiotherapy Limited","57840","85.00","Services - Professional Fees","130197434","06/12/2017","Human Resources","HR Advice","R4400"
"Wolverhampton City Council","http://opendatacommunities.org/id/metropolitan-district-council/wolverhampton","705907","NJB Physiotherapy Limited","57801","147.00","Services - Professional Fees","130196411","06/12/2017","Human Resources","HR Advice","R4400"
"Wolverhampton City Council","http://opendatacommunities.org/id/metropolitan-district-council/wolverhampton","705907","NJB Physiotherapy Limited","57964","168.00","Services - Professional Fees","130198401","13/12/2017","Human Resources","HR Advice","R4400"
"Wolverhampton City Council","http://opendatacommunities.org/id/metropolitan-district-council/wolverhampton","705907","NJB Physiotherapy Limited","57947","85.00","Services - Professional Fees","130198400","13/12/2017","Human Resources","HR Advice","R4400"
"Wolverhampton City Council","http://opendatacommunities.org/id/metropolitan-district-council/wolverhampton","705907","NJB Physiotherapy Limited","57822","85.00","Services - Professional Fees","130196412","06/12/2017","Human Resources","HR Advice","R4400"
"Wolverhampton City Council","http://opendatacommunities.org/id/metropolitan-district-council/wolverhampton","705907","NJB Physiotherapy Limited","57889","85.00","Services - Professional Fees","130197435","06/12/2017","Human Resources","HR Advice","R4400"
"Wolverhampton City Council","http://opendatacommunities.org/id/metropolitan-district-council/wolverhampton","705907","NJB Physiotherapy Limited","57772","85.00","Services - Professional Fees","130196404","06/12/2017","Human Resources","HR Advice","R4400"
"Wolverhampton City Council","http://opendatacommunities.org/id/metropolitan-district-council/wolverhampton","705907","NJB Physiotherapy Limited","57787","105.00","Services - Professional Fees","130196409","06/12/2017","Human Resources","HR Advice","R4400"
"Wolverhampton City Council","http://opendatacommunities.org/id/metropolitan-district-council/wolverhampton","705914","Two by Two�s Day Nursery T/A Noah�s Ark","EYPP Autumn 2017","556.50","TPP - Private Nursery Education Funding","190404359","20/12/2017","Early Years","Early Years Pupil Premium","R5035"
"Wolverhampton City Council","http://opendatacommunities.org/id/metropolitan-district-council/wolverhampton","705914","Two by Two�s Day Nursery T/A Noah�s Ark","NEF Autumn 2017 INST 2","13,706.58","TPP - Private Nursery Education Funding","190403399","15/12/2017","Early Years","Early Years Universal Entitlement for 3 and 4 Year Olds","R5035"
"Wolverhampton City Council","http://opendatacommunities.org/id/metropolitan-district-council/wolverhampton","705914","Two by Two�s Day Nursery T/A Noah�s Ark","TFT Autumn 2017 Inst 2","12,057.24","Grant Payments","190404263","20/12/2017","Early Years","Early Years Entitlement Funding for Disadvantaged 2 Year Olds","R4700"
"Wolverhampton City Council","http://opendatacommunities.org/id/metropolitan-district-council/wolverhampton","705915","Noah�s Ark Environmental Services Ltd","WV1711","1,116.50","Services - Professional Fees","130198562","13/12/2017","Public Protection","Pest Control & Animal Welfare","R4400"
"Wolverhampton City Council","http://opendatacommunities.org/id/metropolitan-district-council/wolverhampton","705916","Nobisco Limited","512571","48.52","Cleaning Supplies and Materials","130198224","13/12/2017","Markets","Wolverhampton Indoor and Open Market","R2705"
"Wolverhampton City Council","http://opendatacommunities.org/id/metropolitan-district-council/wolverhampton","705916","Nobisco Limited","513018","489.32","Cleaning Supplies and Materials","130198739","13/12/2017","Visitor Economy","The Little Civic","R2705"
"Wolverhampton City Council","http://opendatacommunities.org/id/metropolitan-district-council/wolverhampton","705916","Nobisco Limited","512389","5.25","Cleaning Supplies and Materials","130198033","13/12/2017","Independent Living Service","Independent Living Service","R2705"
"Wolverhampton City Council","http://opendatacommunities.org/id/metropolitan-district-council/wolverhampton","705916","Nobisco Limited","513564","192.98","Cleaning Supplies and Materials","130199414","27/12/2017","Catering","Education Catering - General Overheads","R2705"
"Wolverhampton City Council","http://opendatacommunities.org/id/metropolitan-district-council/wolverhampton","705916","Nobisco Limited","510190","14.55","Cleaning Supplies and Materials","130196555","27/12/2017","Catering","Education Catering - General Overheads","R2705"
"Wolverhampton City Council","http://opendatacommunities.org/id/metropolitan-district-council/wolverhampton","705916","Nobisco Limited","506674","60.86","Cleaning Supplies and Materials","130194064","27/12/2017","Catering","Education Catering - General Overheads","R2705"
"Wolverhampton City Council","http://opendatacommunities.org/id/metropolitan-district-council/wolverhampton","705916","Nobisco Limited","511242","225.84","Cleaning Supplies and Materials","130197443","06/12/2017","Visitor Economy","The Little Civic","R2705"
"Wolverhampton City Council","http://opendatacommunities.org/id/metropolitan-district-council/wolverhampton","705916","Nobisco Limited","509758","266.65","Cleaning Supplies and Materials","130196546","06/12/2017","Older People Provider Services","Bradley Lodge Resource Centre","R2705"
"Wolverhampton City Council","http://opendatacommunities.org/id/metropolitan-district-council/wolverhampton","705916","Nobisco Limited","8154","-16.20","Cleaning Supplies and Materials","130195356","15/12/2017","Cleaning","Cleaning of Buildings - General","R2705"
"Wolverhampton City Council","http://opendatacommunities.org/id/metropolitan-district-council/wolverhampton","705916","Nobisco Limited","512567","114.77","Cleaning Supplies and Materials","130198220","20/12/2017","Catering","Education Catering - General Overheads","R2705"
"Wolverhampton City Council","http://opendatacommunities.org/id/metropolitan-district-council/wolverhampton","705916","Nobisco Limited","512771","213.30","Cleaning Supplies and Materials","130198563","20/12/2017","Catering","Education Catering - General Overheads","R2705"
"Wolverhampton City Council","http://opendatacommunities.org/id/metropolitan-district-council/wolverhampton","705916","Nobisco Limited","512388","187.74","Cleaning Supplies and Materials","130198032","20/12/2017","Environmental Maintenance","Ground Maintenance West","R2705"
"Wolverhampton City Council","http://opendatacommunities.org/id/metropolitan-district-council/wolverhampton","705916","Nobisco Limited","513236","202.71","Cleaning Supplies and Materials","130199003","15/12/2017","Leisure Services","Central Baths","R2705"
"Wolverhampton City Council","http://opendatacommunities.org/id/metropolitan-district-council/wolverhampton","705916","Nobisco Limited","512140","90.24","Cleaning Supplies and Materials","130198028","06/12/2017","Learning Disability Provider","Ernest Bold Court","R2705"
"Wolverhampton City Council","http://opendatacommunities.org/id/metropolitan-district-council/wolverhampton","705916","Nobisco Limited","511041","35.60","Cleaning Supplies and Materials","130197082","06/12/2017","Older People Provider Services","Bradley Lodge Resource Centre","R2705"
"Wolverhampton City Council","http://opendatacommunities.org/id/metropolitan-district-council/wolverhampton","705916","Nobisco Limited","510785","519.50","Cleaning Supplies and Materials","130197074","01/12/2017","Learning Disability Provider","Duke Street Bungalows","R2705"
"Wolverhampton City Council","http://opendatacommunities.org/id/metropolitan-district-council/wolverhampton","705916","Nobisco Limited","512139","160.00","Cleaning Supplies and Materials","130198027","06/12/2017","Catering","Education Catering - General Overheads","R2705"
"Wolverhampton City Council","http://opendatacommunities.org/id/metropolitan-district-council/wolverhampton","705916","Nobisco Limited","511240","46.72","Cleaning Supplies and Materials","130197441","06/12/2017","Older People Provider Services","Bradley Lodge Resource Centre","R2705"
"Wolverhampton City Council","http://opendatacommunities.org/id/metropolitan-district-council/wolverhampton","705916","Nobisco Limited","511696","201.66","Cleaning Supplies and Materials","130197793","06/12/2017","Markets","Wolverhampton Indoor and Open Market","R2705"
"Wolverhampton City Council","http://opendatacommunities.org/id/metropolitan-district-council/wolverhampton","705916","Nobisco Limited","512570","12.12","Cleaning Supplies and Materials","130198223","13/12/2017","Markets","Wolverhampton Indoor and Open Market","R2705"
"Wolverhampton City Council","http://opendatacommunities.org/id/metropolitan-district-council/wolverhampton","705916","Nobisco Limited","512772","3.79","Cleaning Supplies and Materials","130198564","13/12/2017","Learning Disability Provider","Ernest Bold Court","R2705"
"Wolverhampton City Council","http://opendatacommunities.org/id/metropolitan-district-council/wolverhampton","705916","Nobisco Limited","512774","53.40","Cleaning Supplies and Materials","130198566","13/12/2017","Visitor Economy","Bantock - Tea Rooms","R2705"
"Wolverhampton City Council","http://opendatacommunities.org/id/metropolitan-district-council/wolverhampton","705916","Nobisco Limited","488423","60.86","Cleaning Supplies and Materials","130176046","27/12/2017","Catering","Education Catering - General Overheads","R2705"
"Wolverhampton City Council","http://opendatacommunities.org/id/metropolitan-district-council/wolverhampton","705916","Nobisco Limited","514423","215.00","Cleaning Supplies and Materials","130199842","27/12/2017","Cleaning","Public Conveniences","R2705"
"Wolverhampton City Council","http://opendatacommunities.org/id/metropolitan-district-council/wolverhampton","705916","Nobisco Limited","513910","12.95","Cleaning Supplies and Materials","130199830","27/12/2017","Cleaning","Cleaning of Buildings - General","R2705"
"Wolverhampton City Council","http://opendatacommunities.org/id/metropolitan-district-council/wolverhampton","705916","Nobisco Limited","8225","-12.11","Cleaning Supplies and Materials","130197083","06/12/2017","Fleet Services","Passenger Transport - General","R2705"
"Wolverhampton City Council","http://opendatacommunities.org/id/metropolitan-district-council/wolverhampton","705916","Nobisco Limited","511037","23.12","Cleaning Supplies and Materials","130197078","06/12/2017","Catering","Education Catering - General Overheads","R2705"
"Wolverhampton City Council","http://opendatacommunities.org/id/metropolitan-district-council/wolverhampton","705916","Nobisco Limited","511036","14.68","Cleaning Supplies and Materials","130197077","06/12/2017","Catering","Education Catering - General Overheads","R2705"
"Wolverhampton City Council","http://opendatacommunities.org/id/metropolitan-district-council/wolverhampton","705916","Nobisco Limited","511036","202.07","Cleaning Supplies and Materials","130197077","06/12/2017","Catering","Education Catering - General Overheads","R2705"
"Wolverhampton City Council","http://opendatacommunities.org/id/metropolitan-district-council/wolverhampton","705916","Nobisco Limited","510784","7.92","Cleaning Supplies and Materials","130197073","01/12/2017","Catering","Education Catering - General Overheads","R2705"
"Wolverhampton City Council","http://opendatacommunities.org/id/metropolitan-district-council/wolverhampton","705916","Nobisco Limited","511446","236.29","Cleaning Supplies and Materials","130197612","06/12/2017","Visitor Economy","Civic Halls Non-Direct Event Management Account","R2705"
"Wolverhampton City Council","http://opendatacommunities.org/id/metropolitan-district-council/wolverhampton","705916","Nobisco Limited","511038","67.98","Cleaning Supplies and Materials","130197079","06/12/2017","Cleaning","Cleaning of Buildings - General","R2705"
"Wolverhampton City Council","http://opendatacommunities.org/id/metropolitan-district-council/wolverhampton","705916","Nobisco Limited","502185","148.60","Cleaning Supplies and Materials","130198137","06/12/2017","Schools","Woodthorne Primary School","R2705"
"Wolverhampton City Council","http://opendatacommunities.org/id/metropolitan-district-council/wolverhampton","705916","Nobisco Limited","512138","160.00","Cleaning Supplies and Materials","130198026","06/12/2017","Catering","Education Catering - General Overheads","R2705"
"Wolverhampton City Council","http://opendatacommunities.org/id/metropolitan-district-council/wolverhampton","705916","Nobisco Limited","511697","35.60","Cleaning Supplies and Materials","130197794","15/12/2017","Older People Provider Services","Bradley Lodge Resource Centre","R2705"
"Wolverhampton City Council","http://opendatacommunities.org/id/metropolitan-district-council/wolverhampton","705916","Nobisco Limited","8275","-37.79","Cleaning Supplies and Materials","130199007","15/12/2017","Catering","Education Catering - General Overheads","R2705"
"Wolverhampton City Council","http://opendatacommunities.org/id/metropolitan-district-council/wolverhampton","705916","Nobisco Limited","513234","46.20","Cleaning Supplies and Materials","130199001","20/12/2017","Catering","Education Catering - General Overheads","R2705"
"Wolverhampton City Council","http://opendatacommunities.org/id/metropolitan-district-council/wolverhampton","705916","Nobisco Limited","513014","233.80","Cleaning Supplies and Materials","130198735","20/12/2017","Catering","Education Catering - General Overheads","R2705"
"Wolverhampton City Council","http://opendatacommunities.org/id/metropolitan-district-council/wolverhampton","705916","Nobisco Limited","512386","8.03","Cleaning Supplies and Materials","130198030","20/12/2017","Catering","Education Catering - General Overheads","R2705"
"Wolverhampton City Council","http://opendatacommunities.org/id/metropolitan-district-council/wolverhampton","705916","Nobisco Limited","512386","35.20","Cleaning Supplies and Materials","130198030","20/12/2017","Catering","Education Catering - General Overheads","R2705"
"Wolverhampton City Council","http://opendatacommunities.org/id/metropolitan-district-council/wolverhampton","705916","Nobisco Limited","507395","151.30","Cleaning Supplies and Materials","130194655","01/12/2017","Older People Provider Services","Bradley Lodge Resource Centre","R2705"
"Wolverhampton City Council","http://opendatacommunities.org/id/metropolitan-district-council/wolverhampton","705916","Nobisco Limited","507395","-151.30","Cleaning Supplies and Materials","130194655","01/12/2017","Older People Provider Services","Bradley Lodge Resource Centre","R2705"
"Wolverhampton City Council","http://opendatacommunities.org/id/metropolitan-district-council/wolverhampton","705916","Nobisco Limited","507395","151.94","Cleaning Supplies and Materials","130194655","01/12/2017","Older People Provider Services","Bradley Lodge Resource Centre","R2705"
"Wolverhampton City Council","http://opendatacommunities.org/id/metropolitan-district-council/wolverhampton","705916","Nobisco Limited","511243","84.12","Cleaning Supplies and Materials","130197444","06/12/2017","Visitor Economy","The Little Civic","R2705"
"Wolverhampton City Council","http://opendatacommunities.org/id/metropolitan-district-council/wolverhampton","705916","Nobisco Limited","513237","3,613.84","Cleaning Supplies and Materials","130199004","15/12/2017","Environmental Maintenance","Ground Maintenance East","R2705"
"Wolverhampton City Council","http://opendatacommunities.org/id/metropolitan-district-council/wolverhampton","705916","Nobisco Limited","513238","7.09","Cleaning Supplies and Materials","130199005","20/12/2017","Leisure Services","Bert Williams Leisure Centre Caf�","R2705"
"Wolverhampton City Council","http://opendatacommunities.org/id/metropolitan-district-council/wolverhampton","705916","Nobisco Limited","513507","1,182.40","Cleaning Supplies and Materials","130199196","20/12/2017","Visitor Economy","Civic Halls Non-Direct Event Management Account","R2705"
"Wolverhampton City Council","http://opendatacommunities.org/id/metropolitan-district-council/wolverhampton","705916","Nobisco Limited","511241","4.46","Cleaning Supplies and Materials","130197442","06/12/2017","Leisure Services","Bert Williams Leisure Centre","R2705"
"Wolverhampton City Council","http://opendatacommunities.org/id/metropolitan-district-council/wolverhampton","705916","Nobisco Limited","512141","44.86","Cleaning Supplies and Materials","130198029","06/12/2017","Visitor Economy","Civic Halls Non-Direct Event Management Account","R2705"
"Wolverhampton City Council","http://opendatacommunities.org/id/metropolitan-district-council/wolverhampton","705916","Nobisco Limited","511443","2.39","Cleaning Supplies and Materials","130197609","06/12/2017","Leisure Services","Bert Williams Leisure Centre Caf�","R2705"
"Wolverhampton City Council","http://opendatacommunities.org/id/metropolitan-district-council/wolverhampton","705916","Nobisco Limited","511239","34.00","Cleaning Supplies and Materials","130197440","06/12/2017","Catering","Education Catering - General Overheads","R2705"
"Wolverhampton City Council","http://opendatacommunities.org/id/metropolitan-district-council/wolverhampton","705916","Nobisco Limited","511444","176.98","Cleaning Supplies and Materials","130197610","06/12/2017","Visitor Economy","Bantock House Museum","R2705"
"Wolverhampton City Council","http://opendatacommunities.org/id/metropolitan-district-council/wolverhampton","705916","Nobisco Limited","510418","71.20","Cleaning Supplies and Materials","130196770","06/12/2017","Older People Provider Services","Bradley Lodge Resource Centre","R2705"
"Wolverhampton City Council","http://opendatacommunities.org/id/metropolitan-district-council/wolverhampton","705916","Nobisco Limited","512775","734.30","Cleaning Supplies and Materials","130198567","13/12/2017","Visitor Economy","Civic Halls Non-Direct Event Management Account","R2705"
"Wolverhampton City Council","http://opendatacommunities.org/id/metropolitan-district-council/wolverhampton","705916","Nobisco Limited","513017","5.66","Cleaning Supplies and Materials","130198738","13/12/2017","Visitor Economy","Bantock - Tea Rooms","R2705"
"Wolverhampton City Council","http://opendatacommunities.org/id/metropolitan-district-council/wolverhampton","705916","Nobisco Limited","513015","144.46","Cleaning Supplies and Materials","130198736","13/12/2017","Learning Disability Provider","Support Plus","R2705"
"Wolverhampton City Council","http://opendatacommunities.org/id/metropolitan-district-council/wolverhampton","705916","Nobisco Limited","487980","88.04","Cleaning Supplies and Materials","130175756","27/12/2017","Catering","Education Catering - General Overheads","R2705"
"Wolverhampton City Council","http://opendatacommunities.org/id/metropolitan-district-council/wolverhampton","705916","Nobisco Limited","514765","248.62","Cleaning Supplies and Materials","130199850","27/12/2017","Environmental Maintenance","Ground Maintenance West","R2705"
"Wolverhampton City Council","http://opendatacommunities.org/id/metropolitan-district-council/wolverhampton","705916","Nobisco Limited","513508","10.36","Cleaning Supplies and Materials","130199197","27/12/2017","Markets","Wolverhampton Indoor and Open Market","R2705"
"Wolverhampton City Council","http://opendatacommunities.org/id/metropolitan-district-council/wolverhampton","705916","Nobisco Limited","512773","95.49","Cleaning Supplies and Materials","130198565","20/12/2017","Leisure Services","Bert Williams Leisure Centre Caf�","R2705"
"Wolverhampton City Council","http://opendatacommunities.org/id/metropolitan-district-council/wolverhampton","705916","Nobisco Limited","513505","36.92","Cleaning Supplies and Materials","130199195","20/12/2017","Learning Disability Provider","Support Plus","R2705"
"Wolverhampton City Council","http://opendatacommunities.org/id/metropolitan-district-council/wolverhampton","705916","Nobisco Limited","513016","20.44","Cleaning Supplies and Materials","130198737","15/12/2017","Visitor Economy","Northicote Farm","R2705"
"Wolverhampton City Council","http://opendatacommunities.org/id/metropolitan-district-council/wolverhampton","705916","Nobisco Limited","511445","161.52","Cleaning Supplies and Materials","130197611","06/12/2017","Visitor Economy","Art Gallery Tea Room","R2705"
"Wolverhampton City Council","http://opendatacommunities.org/id/metropolitan-district-council/wolverhampton","705916","Nobisco Limited","511035","29.75","Cleaning Supplies and Materials","130197076","06/12/2017","Catering","Education Catering - General Overheads","R2705"
"Wolverhampton City Council","http://opendatacommunities.org/id/metropolitan-district-council/wolverhampton","705916","Nobisco Limited","511035","14.55","Cleaning Supplies and Materials","130197076","06/12/2017","Catering","Education Catering - General Overheads","R2705"
"Wolverhampton City Council","http://opendatacommunities.org/id/metropolitan-district-council/wolverhampton","705916","Nobisco Limited","511040","11.99","Cleaning Supplies and Materials","130197081","06/12/2017","Older People Provider Services","Reablement Team","R2705"
"Wolverhampton City Council","http://opendatacommunities.org/id/metropolitan-district-council/wolverhampton","705916","Nobisco Limited","507789","122.01","Cleaning Supplies and Materials","130194826","01/12/2017","Fleet Services","Passenger Transport - General","R2705"
"Wolverhampton City Council","http://opendatacommunities.org/id/metropolitan-district-council/wolverhampton","705916","Nobisco Limited","512569","1,579.68","Cleaning Supplies and Materials","130198222","13/12/2017","Cleaning","Cleaning of Buildings - General","R2705"
"Wolverhampton City Council","http://opendatacommunities.org/id/metropolitan-district-council/wolverhampton","705916","Nobisco Limited","512387","15.72","Cleaning Supplies and Materials","130198031","13/12/2017","Facilities Management","Civic Centre","R2705"
"Wolverhampton City Council","http://opendatacommunities.org/id/metropolitan-district-council/wolverhampton","705916","Nobisco Limited","512568","1,006.31","Cleaning Supplies and Materials","130198221","13/12/2017","Catering","Education Catering - General Overheads","R2705"
"Wolverhampton City Council","http://opendatacommunities.org/id/metropolitan-district-council/wolverhampton","705916","Nobisco Limited","496501","23.07","Cleaning Supplies and Materials","130185647","27/12/2017","Catering","Education Catering - General Overheads","R2705"
"Wolverhampton City Council","http://opendatacommunities.org/id/metropolitan-district-council/wolverhampton","705916","Nobisco Limited","513233","3.15","Cleaning Supplies and Materials","130199000","27/12/2017","Catering","Education Catering - General Overheads","R2705"
"Wolverhampton City Council","http://opendatacommunities.org/id/metropolitan-district-council/wolverhampton","705916","Nobisco Limited","513565","1,311.39","Cleaning Supplies and Materials","130199415","27/12/2017","Cleaning","Cleaning of Buildings - General","R2705"
"Wolverhampton City Council","http://opendatacommunities.org/id/metropolitan-district-council/wolverhampton","705916","Nobisco Limited","513690","58.74","Cleaning Supplies and Materials","130199828","27/12/2017","Visitor Economy","Art Gallery Tea Room","R2705"
"Wolverhampton City Council","http://opendatacommunities.org/id/metropolitan-district-council/wolverhampton","705916","Nobisco Limited","514139","21.21","Cleaning Supplies and Materials","130199839","28/12/2017","Leisure Services","Bert Williams Leisure Centre","R2705"
"Wolverhampton City Council","http://opendatacommunities.org/id/metropolitan-district-council/wolverhampton","705916","Nobisco Limited","511442","41.31","Cleaning Supplies and Materials","130197608","06/12/2017","Catering","Education Catering - General Overheads","R2705"
"Wolverhampton City Council","http://opendatacommunities.org/id/metropolitan-district-council/wolverhampton","705916","Nobisco Limited","511039","72.14","Cleaning Supplies and Materials","130197080","06/12/2017","Visitor Economy","Bantock - Tea Rooms","R2705"
"Wolverhampton City Council","http://opendatacommunities.org/id/metropolitan-district-council/wolverhampton","705926","Normans (Burton-On-Trent) Limited","INV1141346","187.50","Equipment - R & M","130196417","13/12/2017","Standards and Vulnerable Pupils","Music Support Team","R4003"
"Wolverhampton City Council","http://opendatacommunities.org/id/metropolitan-district-council/wolverhampton","705926","Normans (Burton-On-Trent) Limited","INV1138976","120.00","Equipment - R & M","130195357","06/12/2017","Standards and Vulnerable Pupils","Music Support Team","R4003"
"Wolverhampton City Council","http://opendatacommunities.org/id/metropolitan-district-council/wolverhampton","705926","Normans (Burton-On-Trent) Limited","INV1147405","697.50","Equipment - R & M","130197613","27/12/2017","Standards and Vulnerable Pupils","Music Support Team","R4003"
"Wolverhampton City Council","http://opendatacommunities.org/id/metropolitan-district-council/wolverhampton","705945","Northgate Public Services (UK) Limited","91398794","6,899.03","Computing - Purchase of Software","130197084","20/12/2017","Revenues & Benefits","Revenues","R4531"
"Wolverhampton City Council","http://opendatacommunities.org/id/metropolitan-district-council/wolverhampton","705945","Northgate Public Services (UK) Limited","91399218","1,191.05","Services - Professional Fees","130198225","27/12/2017","Customer Services","City Direct","R4400"
"Wolverhampton City Council","http://opendatacommunities.org/id/metropolitan-district-council/wolverhampton","705946","Northgate Vehicle Hire Limited","IW03585809","30.00","Hire of Vehicles","190406342","29/12/2017","Fleet Services","Fleet Management","R3200"
"Wolverhampton City Council","http://opendatacommunities.org/id/metropolitan-district-council/wolverhampton","705946","Northgate Vehicle Hire Limited","SL04711517","115.84","Hire of Vehicles","190406346","29/12/2017","Fleet Services","Fleet Management","R3200"
"Wolverhampton City Council","http://opendatacommunities.org/id/metropolitan-district-council/wolverhampton","705946","Northgate Vehicle Hire Limited","SL04747350","342.32","Hire of Vehicles","190406350","29/12/2017","Fleet Services","Fleet Management","R3200"
"Wolverhampton City Council","http://opendatacommunities.org/id/metropolitan-district-council/wolverhampton","705946","Northgate Vehicle Hire Limited","SL04747365","306.46","Hire of Vehicles","190406354","29/12/2017","Fleet Services","Fleet Management","R3200"
"Wolverhampton City Council","http://opendatacommunities.org/id/metropolitan-district-council/wolverhampton","705946","Northgate Vehicle Hire Limited","SL04747419","224.40","Hire of Vehicles","190406370","29/12/2017","Fleet Services","Fleet Management","R3200"
"Wolverhampton City Council","http://opendatacommunities.org/id/metropolitan-district-council/wolverhampton","705946","Northgate Vehicle Hire Limited","SL04747406","342.32","Hire of Vehicles","190406366","29/12/2017","Fleet Services","Fleet Management","R3200"
"Wolverhampton City Council","http://opendatacommunities.org/id/metropolitan-district-council/wolverhampton","705946","Northgate Vehicle Hire Limited","SL04747379","306.46","Hire of Vehicles","190406358","29/12/2017","Fleet Services","Fleet Management","R3200"
"Wolverhampton City Council","http://opendatacommunities.org/id/metropolitan-district-council/wolverhampton","705946","Northgate Vehicle Hire Limited","SL04747393","342.32","Hire of Vehicles","190406362","29/12/2017","Fleet Services","Fleet Management","R3200"
"Wolverhampton City Council","http://opendatacommunities.org/id/metropolitan-district-council/wolverhampton","705946","Northgate Vehicle Hire Limited","SL04747450","342.32","Hire of Vehicles","190406378","29/12/2017","Fleet Services","Fleet Management","R3200"
"Wolverhampton City Council","http://opendatacommunities.org/id/metropolitan-district-council/wolverhampton","705946","Northgate Vehicle Hire Limited","SL04747436","335.50","Hire of Vehicles","190406374","29/12/2017","Fleet Services","Fleet Management","R3200"
"Wolverhampton City Council","http://opendatacommunities.org/id/metropolitan-district-council/wolverhampton","705946","Northgate Vehicle Hire Limited","SL04747481","190.52","Hire of Vehicles","190406386","29/12/2017","Fleet Services","Fleet Management","R3200"
"Wolverhampton City Council","http://opendatacommunities.org/id/metropolitan-district-council/wolverhampton","705946","Northgate Vehicle Hire Limited","SL04747464","318.56","Hire of Vehicles","190406382","29/12/2017","Fleet Services","Fleet Management","R3200"
"Wolverhampton City Council","http://opendatacommunities.org/id/metropolitan-district-council/wolverhampton","705946","Northgate Vehicle Hire Limited","SL04747497","190.52","Hire of Vehicles","190406390","29/12/2017","Fleet Services","Fleet Management","R3200"
"Wolverhampton City Council","http://opendatacommunities.org/id/metropolitan-district-council/wolverhampton","705946","Northgate Vehicle Hire Limited","SL04652553","292.53","Hire of Vehicles","190406345","29/12/2017","Fleet Services","Fleet Management","R3200"
"Wolverhampton City Council","http://opendatacommunities.org/id/metropolitan-district-council/wolverhampton","705946","Northgate Vehicle Hire Limited","SL04747346","318.56","Hire of Vehicles","190406349","29/12/2017","Fleet Services","Fleet Management","R3200"
"Wolverhampton City Council","http://opendatacommunities.org/id/metropolitan-district-council/wolverhampton","705946","Northgate Vehicle Hire Limited","SL04747361","317.46","Hire of Vehicles","190406353","29/12/2017","Fleet Services","Fleet Management","R3200"
"Wolverhampton City Council","http://opendatacommunities.org/id/metropolitan-district-council/wolverhampton","705946","Northgate Vehicle Hire Limited","SL04747376","306.46","Hire of Vehicles","190406357","29/12/2017","Fleet Services","Fleet Management","R3200"
"Wolverhampton City Council","http://opendatacommunities.org/id/metropolitan-district-council/wolverhampton","705946","Northgate Vehicle Hire Limited","SL04747390","342.32","Hire of Vehicles","190406361","29/12/2017","Fleet Services","Fleet Management","R3200"
"Wolverhampton City Council","http://opendatacommunities.org/id/metropolitan-district-council/wolverhampton","705946","Northgate Vehicle Hire Limited","SL04747404","306.46","Hire of Vehicles","190406365","29/12/2017","Fleet Services","Fleet Management","R3200"
"Wolverhampton City Council","http://opendatacommunities.org/id/metropolitan-district-council/wolverhampton","705946","Northgate Vehicle Hire Limited","SL04747416","306.46","Hire of Vehicles","190406369","29/12/2017","Fleet Services","Fleet Management","R3200"
"Wolverhampton City Council","http://opendatacommunities.org/id/metropolitan-district-council/wolverhampton","705946","Northgate Vehicle Hire Limited","SL04747446","224.40","Hire of Vehicles","190406377","29/12/2017","Fleet Services","Fleet Management","R3200"
"Wolverhampton City Council","http://opendatacommunities.org/id/metropolitan-district-council/wolverhampton","705946","Northgate Vehicle Hire Limited","SL04747431","342.32","Hire of Vehicles","190406373","29/12/2017","Fleet Services","Fleet Management","R3200"
"Wolverhampton City Council","http://opendatacommunities.org/id/metropolitan-district-council/wolverhampton","705946","Northgate Vehicle Hire Limited","SL04747477","306.46","Hire of Vehicles","190406385","29/12/2017","Fleet Services","Fleet Management","R3200"
"Wolverhampton City Council","http://opendatacommunities.org/id/metropolitan-district-council/wolverhampton","705946","Northgate Vehicle Hire Limited","SL04747461","342.32","Hire of Vehicles","190406381","29/12/2017","Fleet Services","Fleet Management","R3200"
"Wolverhampton City Council","http://opendatacommunities.org/id/metropolitan-district-council/wolverhampton","705946","Northgate Vehicle Hire Limited","SL04750274","13.25","Hire of Vehicles","190406393","29/12/2017","Fleet Services","Fleet Management","R3200"
"Wolverhampton City Council","http://opendatacommunities.org/id/metropolitan-district-council/wolverhampton","705946","Northgate Vehicle Hire Limited","SL04747493","317.46","Hire of Vehicles","190406389","29/12/2017","Fleet Services","Fleet Management","R3200"
"Wolverhampton City Council","http://opendatacommunities.org/id/metropolitan-district-council/wolverhampton","705946","Northgate Vehicle Hire Limited","SC00169782CR","-236.81","Hire of Vehicles","190406343","29/12/2017","Fleet Services","Fleet Management","R3200"
"Wolverhampton City Council","http://opendatacommunities.org/id/metropolitan-district-council/wolverhampton","705946","Northgate Vehicle Hire Limited","SL04715084","55.72","Hire of Vehicles","190406347","29/12/2017","Fleet Services","Fleet Management","R3200"
"Wolverhampton City Council","http://opendatacommunities.org/id/metropolitan-district-council/wolverhampton","705946","Northgate Vehicle Hire Limited","SL04747353","306.46","Hire of Vehicles","190406351","29/12/2017","Fleet Services","Fleet Management","R3200"
"Wolverhampton City Council","http://opendatacommunities.org/id/metropolitan-district-council/wolverhampton","705946","Northgate Vehicle Hire Limited","SL04747368","306.46","Hire of Vehicles","190406355","29/12/2017","Fleet Services","Fleet Management","R3200"
"Wolverhampton City Council","http://opendatacommunities.org/id/metropolitan-district-council/wolverhampton","705946","Northgate Vehicle Hire Limited","SL04747383","342.32","Hire of Vehicles","190406359","29/12/2017","Fleet Services","Fleet Management","R3200"
"Wolverhampton City Council","http://opendatacommunities.org/id/metropolitan-district-council/wolverhampton","705946","Northgate Vehicle Hire Limited","SL04747397IN","342.32","Hire of Vehicles","190406363","29/12/2017","Fleet Services","Fleet Management","R3200"
"Wolverhampton City Council","http://opendatacommunities.org/id/metropolitan-district-council/wolverhampton","705946","Northgate Vehicle Hire Limited","SL04747410","448.80","Hire of Vehicles","190406367","29/12/2017","Fleet Services","Fleet Management","R3200"
"Wolverhampton City Council","http://opendatacommunities.org/id/metropolitan-district-council/wolverhampton","705946","Northgate Vehicle Hire Limited","SL04747423","306.46","Hire of Vehicles","190406371","29/12/2017","Fleet Services","Fleet Management","R3200"
"Wolverhampton City Council","http://opendatacommunities.org/id/metropolitan-district-council/wolverhampton","705946","Northgate Vehicle Hire Limited","SL04747438","306.46","Hire of Vehicles","190406375","29/12/2017","Fleet Services","Fleet Management","R3200"
"Wolverhampton City Council","http://opendatacommunities.org/id/metropolitan-district-council/wolverhampton","705946","Northgate Vehicle Hire Limited","SL04747453","306.46","Hire of Vehicles","190406379","29/12/2017","Fleet Services","Fleet Management","R3200"
"Wolverhampton City Council","http://opendatacommunities.org/id/metropolitan-district-council/wolverhampton","705946","Northgate Vehicle Hire Limited","SL04747469","306.46","Hire of Vehicles","190406383","29/12/2017","Fleet Services","Fleet Management","R3200"
"Wolverhampton City Council","http://opendatacommunities.org/id/metropolitan-district-council/wolverhampton","705946","Northgate Vehicle Hire Limited","SL04747505","76.50","Hire of Vehicles","190406391","29/12/2017","Fleet Services","Fleet Management","R3200"
"Wolverhampton City Council","http://opendatacommunities.org/id/metropolitan-district-council/wolverhampton","705946","Northgate Vehicle Hire Limited","SL04747485","190.52","Hire of Vehicles","190406387","29/12/2017","Fleet Services","Fleet Management","R3200"
"Wolverhampton City Council","http://opendatacommunities.org/id/metropolitan-district-council/wolverhampton","705946","Northgate Vehicle Hire Limited","SL04747489","190.52","Hire of Vehicles","190406388","29/12/2017","Fleet Services","Fleet Management","R3200"
"Wolverhampton City Council","http://opendatacommunities.org/id/metropolitan-district-council/wolverhampton","705946","Northgate Vehicle Hire Limited","SC04606078","-306.46","Hire of Vehicles","190406344","29/12/2017","Fleet Services","Fleet Management","R3200"
"Wolverhampton City Council","http://opendatacommunities.org/id/metropolitan-district-council/wolverhampton","705946","Northgate Vehicle Hire Limited","SL04717006","97.51","Hire of Vehicles","190406348","29/12/2017","Fleet Services","Fleet Management","R3200"
"Wolverhampton City Council","http://opendatacommunities.org/id/metropolitan-district-council/wolverhampton","705946","Northgate Vehicle Hire Limited","SL04747357","306.46","Hire of Vehicles","190406352","29/12/2017","Fleet Services","Fleet Management","R3200"
"Wolverhampton City Council","http://opendatacommunities.org/id/metropolitan-district-council/wolverhampton","705946","Northgate Vehicle Hire Limited","SL04747372","306.46","Hire of Vehicles","190406356","29/12/2017","Fleet Services","Fleet Management","R3200"
"Wolverhampton City Council","http://opendatacommunities.org/id/metropolitan-district-council/wolverhampton","705946","Northgate Vehicle Hire Limited","SL04747413","224.40","Hire of Vehicles","190406368","29/12/2017","Fleet Services","Fleet Management","R3200"
"Wolverhampton City Council","http://opendatacommunities.org/id/metropolitan-district-council/wolverhampton","705946","Northgate Vehicle Hire Limited","SL04747386","342.32","Hire of Vehicles","190406360","29/12/2017","Fleet Services","Fleet Management","R3200"
"Wolverhampton City Council","http://opendatacommunities.org/id/metropolitan-district-council/wolverhampton","705946","Northgate Vehicle Hire Limited","SL04747400","306.46","Hire of Vehicles","190406364","29/12/2017","Fleet Services","Fleet Management","R3200"
"Wolverhampton City Council","http://opendatacommunities.org/id/metropolitan-district-council/wolverhampton","705946","Northgate Vehicle Hire Limited","SL04747428","224.40","Hire of Vehicles","190406372","29/12/2017","Fleet Services","Fleet Management","R3200"
"Wolverhampton City Council","http://opendatacommunities.org/id/metropolitan-district-council/wolverhampton","705946","Northgate Vehicle Hire Limited","SL04747457","306.46","Hire of Vehicles","190406380","29/12/2017","Fleet Services","Fleet Management","R3200"
"Wolverhampton City Council","http://opendatacommunities.org/id/metropolitan-district-council/wolverhampton","705946","Northgate Vehicle Hire Limited","SL04747443","224.40","Hire of Vehicles","190406376","29/12/2017","Fleet Services","Fleet Management","R3200"
"Wolverhampton City Council","http://opendatacommunities.org/id/metropolitan-district-council/wolverhampton","705946","Northgate Vehicle Hire Limited","SL04747474","224.40","Hire of Vehicles","190406384","29/12/2017","Fleet Services","Fleet Management","R3200"
"Wolverhampton City Council","http://opendatacommunities.org/id/metropolitan-district-council/wolverhampton","705946","Northgate Vehicle Hire Limited","SL04747508","153.00","Hire of Vehicles","190406392","29/12/2017","Fleet Services","Fleet Management","R3200"
"Wolverhampton City Council","http://opendatacommunities.org/id/metropolitan-district-council/wolverhampton","705954","Nottingham Rehab Supplies/Nrs Limited","97468064","570.00","Equipment - Purchase","130196098","13/12/2017","Independent Living Service","Independent Living Service","R4000"
"Wolverhampton City Council","http://opendatacommunities.org/id/metropolitan-district-council/wolverhampton","705954","Nottingham Rehab Supplies/Nrs Limited","97468064","325.10","Equipment - Purchase","130196098","13/12/2017","Independent Living Service","Independent Living Service","R4000"
"Wolverhampton City Council","http://opendatacommunities.org/id/metropolitan-district-council/wolverhampton","705954","Nottingham Rehab Supplies/Nrs Limited","1800100746","2,269.52","Equipment - R & M","130195179","06/12/2017","Independent Living Service","Independent Living Service","R4003"
"Wolverhampton City Council","http://opendatacommunities.org/id/metropolitan-district-council/wolverhampton","705957","Nova Training Limited","5069","2,111.88","TPP - Alternative Provision of Education","130197795","06/12/2017","Standards and Vulnerable Pupils","Post 16 SEN Provision","R5037"
"Wolverhampton City Council","http://opendatacommunities.org/id/metropolitan-district-council/wolverhampton","705959","Novatech Limited","6561650","78.85","Stationery","130199150","15/12/2017","Schools","St Paul�s Church of England (Aided) School","R4308"
"Wolverhampton City Council","http://opendatacommunities.org/id/metropolitan-district-council/wolverhampton","705964","NPOWER","NP0270-79660575500","368.71","Electricity","190401786","13/12/2017","Housing Revenue Account","Hostels / Outreach","R2100"
"Wolverhampton City Council","http://opendatacommunities.org/id/metropolitan-district-council/wolverhampton","705964","NPOWER","NP0269-79943478860","940.03","Electricity","190401785","13/12/2017","Housing Revenue Account","Hostels / Outreach","R2100"
"Wolverhampton City Council","http://opendatacommunities.org/id/metropolitan-district-council/wolverhampton","705964","NPOWER","NP0281-79408231160","246.89","Electricity","190401797","13/12/2017","Housing Revenue Account","Hostels / Outreach","R2100"
"Wolverhampton City Council","http://opendatacommunities.org/id/metropolitan-district-council/wolverhampton","705964","NPOWER","NP0283-79180763890","485.70","Electricity","190401799","13/12/2017","Housing Revenue Account","Hostels / Outreach","R2100"
"Wolverhampton City Council","http://opendatacommunities.org/id/metropolitan-district-council/wolverhampton","705964","NPOWER","NP0271-79565756800","315.06","Electricity","190401787","13/12/2017","Housing Revenue Account","Hostels / Outreach","R2100"
"Wolverhampton City Council","http://opendatacommunities.org/id/metropolitan-district-council/wolverhampton","705964","NPOWER","NP0279-79549928880","798.86","Electricity","190401795","13/12/2017","Housing Revenue Account","Hostels / Outreach","R2100"
"Wolverhampton City Council","http://opendatacommunities.org/id/metropolitan-district-council/wolverhampton","705964","NPOWER","NP0276-79742120740","4.78","Electricity","190401792","13/12/2017","Housing Revenue Account","Hostels / Outreach","R2100"
"Wolverhampton City Council","http://opendatacommunities.org/id/metropolitan-district-council/wolverhampton","705964","NPOWER","NP0282-79317409980","539.97","Electricity","190401798","13/12/2017","Housing Revenue Account","Hostels / Outreach","R2100"
"Wolverhampton City Council","http://opendatacommunities.org/id/metropolitan-district-council/wolverhampton","705964","NPOWER","NP0284-79037534440","372.55","Electricity","190401800","13/12/2017","Housing Revenue Account","Hostels / Outreach","R2100"
"Wolverhampton City Council","http://opendatacommunities.org/id/metropolitan-district-council/wolverhampton","705964","NPOWER","NP0272-79658059440","842.48","Electricity","190401788","13/12/2017","Housing Revenue Account","Hostels / Outreach","R2100"
"Wolverhampton City Council","http://opendatacommunities.org/id/metropolitan-district-council/wolverhampton","705964","NPOWER","NP0277-79746576000","644.56","Electricity","190401793","13/12/2017","Housing Revenue Account","Hostels / Outreach","R2100"
"Wolverhampton City Council","http://opendatacommunities.org/id/metropolitan-district-council/wolverhampton","705964","NPOWER","NP0280-79412550060","359.87","Electricity","190401796","13/12/2017","Housing Revenue Account","Hostels / Outreach","R2100"
"Wolverhampton City Council","http://opendatacommunities.org/id/metropolitan-district-council/wolverhampton","705964","NPOWER","NP0287-79872600700","533.51","Electricity","190401803","13/12/2017","Housing Revenue Account","Hostels / Outreach","R2100"
"Wolverhampton City Council","http://opendatacommunities.org/id/metropolitan-district-council/wolverhampton","705964","NPOWER","NP0285-79034839190","829.80","Electricity","190401801","13/12/2017","Housing Revenue Account","Hostels / Outreach","R2100"
"Wolverhampton City Council","http://opendatacommunities.org/id/metropolitan-district-council/wolverhampton","705964","NPOWER","NP0273-79261433080","906.30","Electricity","190401789","13/12/2017","Housing Revenue Account","Hostels / Outreach","R2100"
"Wolverhampton City Council","http://opendatacommunities.org/id/metropolitan-district-council/wolverhampton","705964","NPOWER","NP0274-79708947120","1,035.84","Electricity","190401790","13/12/2017","Housing Revenue Account","Hostels / Outreach","R2100"
"Wolverhampton City Council","http://opendatacommunities.org/id/metropolitan-district-council/wolverhampton","705964","NPOWER","NP0275-79658059440","694.75","Electricity","190401791","13/12/2017","Housing Revenue Account","Hostels / Outreach","R2100"
"Wolverhampton City Council","http://opendatacommunities.org/id/metropolitan-district-council/wolverhampton","705964","NPOWER","NP0278-79728787730","2,000.00","Electricity","190401794","13/12/2017","Housing Revenue Account","Hostels / Outreach","R2100"
"Wolverhampton City Council","http://opendatacommunities.org/id/metropolitan-district-council/wolverhampton","705964","NPOWER","NP0286-79008077050","970.58","Electricity","190401802","13/12/2017","Housing Revenue Account","Hostels / Outreach","R2100"
"Wolverhampton City Council","http://opendatacommunities.org/id/metropolitan-district-council/wolverhampton","705966","NPOWER Limited-Mba Accounts Receivable","LGU54DPC","592.55","Electricity","190405444","21/12/2017","Corporate Asset Management","Central Utilities to Recharge","R2100"
"Wolverhampton City Council","http://opendatacommunities.org/id/metropolitan-district-council/wolverhampton","705966","NPOWER Limited-Mba Accounts Receivable","LGU53TTS","146.12","Electricity","190405445","21/12/2017","Corporate Asset Management","Central Utilities to Recharge","R2100"
"Wolverhampton City Council","http://opendatacommunities.org/id/metropolitan-district-council/wolverhampton","705978","Nuco Training Limited","INV142800","10.00","Training Expenses","130196100","13/12/2017","Adult Education","Direct Delivery Team ( L.& D.)","R1650"
"Wolverhampton City Council","http://opendatacommunities.org/id/metropolitan-district-council/wolverhampton","705978","Nuco Training Limited","INV142800","120.00","Training Expenses","130196100","13/12/2017","Adult Education","Direct Delivery Team ( L.& D.)","R1650"
"Wolverhampton City Council","http://opendatacommunities.org/id/metropolitan-district-council/wolverhampton","705978","Nuco Training Limited","INV142800","65.00","Training Expenses","130196100","13/12/2017","Adult Education","Direct Delivery Team ( L.& D.)","R1650"
"Wolverhampton City Council","http://opendatacommunities.org/id/metropolitan-district-council/wolverhampton","705995","Oakley�S Limited","169600","8.10","Equipment - Purchase","190400140","06/12/2017","Fleet Services","Fleet Management","R4000"
"Wolverhampton City Council","http://opendatacommunities.org/id/metropolitan-district-council/wolverhampton","705995","Oakley�S Limited","169947","14.21","Equipment - Purchase","190404660","20/12/2017","Fleet Services","Fleet Management","R4000"
"Wolverhampton City Council","http://opendatacommunities.org/id/metropolitan-district-council/wolverhampton","705995","Oakley�S Limited","169947","120.21","Equipment - Purchase","190404660","20/12/2017","Fleet Services","Fleet Management","R4000"
"Wolverhampton City Council","http://opendatacommunities.org/id/metropolitan-district-council/wolverhampton","705995","Oakley�S Limited","169564","282.15","Equipment - Purchase","190404652","20/12/2017","Fleet Services","Fleet Management","R4000"
"Wolverhampton City Council","http://opendatacommunities.org/id/metropolitan-district-council/wolverhampton","705995","Oakley�S Limited","169947","152.19","Equipment - Purchase","190404660","20/12/2017","Fleet Services","Fleet Management","R4000"
"Wolverhampton City Council","http://opendatacommunities.org/id/metropolitan-district-council/wolverhampton","705995","Oakley�S Limited","169947","32.79","Equipment - Purchase","190404660","20/12/2017","Fleet Services","Fleet Management","R4000"
"Wolverhampton City Council","http://opendatacommunities.org/id/metropolitan-district-council/wolverhampton","705995","Oakley�S Limited","169954","-44.55","Equipment - Purchase","190404661","20/12/2017","Fleet Services","Fleet Management","R4000"
"Wolverhampton City Council","http://opendatacommunities.org/id/metropolitan-district-council/wolverhampton","705995","Oakley�S Limited","169992","15.14","Equipment - Purchase","190404665","20/12/2017","Fleet Services","Fleet Management","R4000"
"Wolverhampton City Council","http://opendatacommunities.org/id/metropolitan-district-council/wolverhampton","705995","Oakley�S Limited","169709","9.52","Equipment - Purchase","190400143","06/12/2017","Fleet Services","Fleet Management","R4000"
"Wolverhampton City Council","http://opendatacommunities.org/id/metropolitan-district-council/wolverhampton","705995","Oakley�S Limited","169709","8.47","Equipment - Purchase","190400143","06/12/2017","Fleet Services","Fleet Management","R4000"
"Wolverhampton City Council","http://opendatacommunities.org/id/metropolitan-district-council/wolverhampton","705995","Oakley�S Limited","169911","334.47","Equipment - Purchase","190404659","20/12/2017","Fleet Services","Fleet Management","R4000"
"Wolverhampton City Council","http://opendatacommunities.org/id/metropolitan-district-council/wolverhampton","705995","Oakley�S Limited","169587","7.55","Equipment - Purchase","190404653","20/12/2017","Fleet Services","Fleet Management","R4000"
"Wolverhampton City Council","http://opendatacommunities.org/id/metropolitan-district-council/wolverhampton","705995","Oakley�S Limited","169587","123.40","Equipment - Purchase","190404653","20/12/2017","Fleet Services","Fleet Management","R4000"
"Wolverhampton City Council","http://opendatacommunities.org/id/metropolitan-district-council/wolverhampton","705995","Oakley�S Limited","169587","46.74","Equipment - Purchase","190404653","20/12/2017","Fleet Services","Fleet Management","R4000"
"Wolverhampton City Council","http://opendatacommunities.org/id/metropolitan-district-council/wolverhampton","705995","Oakley�S Limited","169587","25.09","Equipment - Purchase","190404653","20/12/2017","Fleet Services","Fleet Management","R4000"
"Wolverhampton City Council","http://opendatacommunities.org/id/metropolitan-district-council/wolverhampton","705995","Oakley�S Limited","169587","81.43","Equipment - Purchase","190404653","20/12/2017","Fleet Services","Fleet Management","R4000"
"Wolverhampton City Council","http://opendatacommunities.org/id/metropolitan-district-council/wolverhampton","705995","Oakley�S Limited","169587","31.88","Equipment - Purchase","190404653","20/12/2017","Fleet Services","Fleet Management","R4000"
"Wolverhampton City Council","http://opendatacommunities.org/id/metropolitan-district-council/wolverhampton","705995","Oakley�S Limited","169587","204.34","Equipment - Purchase","190404653","20/12/2017","Fleet Services","Fleet Management","R4000"
"Wolverhampton City Council","http://opendatacommunities.org/id/metropolitan-district-council/wolverhampton","705995","Oakley�S Limited","169587","62.81","Equipment - Purchase","190404653","20/12/2017","Fleet Services","Fleet Management","R4000"
"Wolverhampton City Council","http://opendatacommunities.org/id/metropolitan-district-council/wolverhampton","705995","Oakley�S Limited","169892","15.52","Equipment - Purchase","190404654","20/12/2017","Fleet Services","Fleet Management","R4000"
"Wolverhampton City Council","http://opendatacommunities.org/id/metropolitan-district-council/wolverhampton","705995","Oakley�S Limited","169955","-8.91","Equipment - Purchase","190404662","20/12/2017","Fleet Services","Fleet Management","R4000"
"Wolverhampton City Council","http://opendatacommunities.org/id/metropolitan-district-council/wolverhampton","705995","Oakley�S Limited","169821","22.67","Equipment - Purchase","190403331","15/12/2017","Fleet Services","Fleet Management","R4000"
"Wolverhampton City Council","http://opendatacommunities.org/id/metropolitan-district-council/wolverhampton","705995","Oakley�S Limited","169779","10.05","Equipment - Purchase","190402019","13/12/2017","Fleet Services","Fleet Management","R4000"
"Wolverhampton City Council","http://opendatacommunities.org/id/metropolitan-district-council/wolverhampton","705995","Oakley�S Limited","169779","10.04","Equipment - Purchase","190402019","13/12/2017","Fleet Services","Fleet Management","R4000"
"Wolverhampton City Council","http://opendatacommunities.org/id/metropolitan-district-council/wolverhampton","705995","Oakley�S Limited","169779","10.05","Equipment - Purchase","190402019","13/12/2017","Fleet Services","Fleet Management","R4000"
"Wolverhampton City Council","http://opendatacommunities.org/id/metropolitan-district-council/wolverhampton","705995","Oakley�S Limited","169779","10.04","Equipment - Purchase","190402019","13/12/2017","Fleet Services","Fleet Management","R4000"
"Wolverhampton City Council","http://opendatacommunities.org/id/metropolitan-district-council/wolverhampton","705995","Oakley�S Limited","169779","10.04","Equipment - Purchase","190402019","13/12/2017","Fleet Services","Fleet Management","R4000"
"Wolverhampton City Council","http://opendatacommunities.org/id/metropolitan-district-council/wolverhampton","705995","Oakley�S Limited","169779","10.04","Equipment - Purchase","190402019","13/12/2017","Fleet Services","Fleet Management","R4000"
"Wolverhampton City Council","http://opendatacommunities.org/id/metropolitan-district-council/wolverhampton","705995","Oakley�S Limited","169898","83.70","Equipment - Purchase","190403332","15/12/2017","Fleet Services","Fleet Management","R4000"
"Wolverhampton City Council","http://opendatacommunities.org/id/metropolitan-district-council/wolverhampton","705995","Oakley�S Limited","169563","10.04","Equipment - Purchase","190404651","20/12/2017","Fleet Services","Fleet Management","R4000"
"Wolverhampton City Council","http://opendatacommunities.org/id/metropolitan-district-council/wolverhampton","705995","Oakley�S Limited","169563","10.04","Equipment - Purchase","190404651","20/12/2017","Fleet Services","Fleet Management","R4000"
"Wolverhampton City Council","http://opendatacommunities.org/id/metropolitan-district-council/wolverhampton","705995","Oakley�S Limited","169563","8.91","Equipment - Purchase","190404651","20/12/2017","Fleet Services","Fleet Management","R4000"
"Wolverhampton City Council","http://opendatacommunities.org/id/metropolitan-district-council/wolverhampton","705995","Oakley�S Limited","169563","8.91","Equipment - Purchase","190404651","20/12/2017","Fleet Services","Fleet Management","R4000"
"Wolverhampton City Council","http://opendatacommunities.org/id/metropolitan-district-council/wolverhampton","705995","Oakley�S Limited","169563","10.04","Equipment - Purchase","190404651","20/12/2017","Fleet Services","Fleet Management","R4000"
"Wolverhampton City Council","http://opendatacommunities.org/id/metropolitan-district-council/wolverhampton","705995","Oakley�S Limited","169563","10.04","Equipment - Purchase","190404651","20/12/2017","Fleet Services","Fleet Management","R4000"
"Wolverhampton City Council","http://opendatacommunities.org/id/metropolitan-district-council/wolverhampton","705995","Oakley�S Limited","169563","8.92","Equipment - Purchase","190404651","20/12/2017","Fleet Services","Fleet Management","R4000"
"Wolverhampton City Council","http://opendatacommunities.org/id/metropolitan-district-council/wolverhampton","705995","Oakley�S Limited","169563","8.92","Equipment - Purchase","190404651","20/12/2017","Fleet Services","Fleet Management","R4000"
"Wolverhampton City Council","http://opendatacommunities.org/id/metropolitan-district-council/wolverhampton","705995","Oakley�S Limited","169563","10.04","Equipment - Purchase","190404651","20/12/2017","Fleet Services","Fleet Management","R4000"
"Wolverhampton City Council","http://opendatacommunities.org/id/metropolitan-district-council/wolverhampton","705995","Oakley�S Limited","169563","10.04","Equipment - Purchase","190404651","20/12/2017","Fleet Services","Fleet Management","R4000"
"Wolverhampton City Council","http://opendatacommunities.org/id/metropolitan-district-council/wolverhampton","705995","Oakley�S Limited","169563","8.91","Equipment - Purchase","190404651","20/12/2017","Fleet Services","Fleet Management","R4000"
"Wolverhampton City Council","http://opendatacommunities.org/id/metropolitan-district-council/wolverhampton","705995","Oakley�S Limited","169895","1,159.38","Equipment - Purchase","190404656","20/12/2017","Fleet Services","Fleet Management","R4000"
"Wolverhampton City Council","http://opendatacommunities.org/id/metropolitan-district-council/wolverhampton","705995","Oakley�S Limited","169962","21.69","Equipment - Purchase","190404663","20/12/2017","Fleet Services","Fleet Management","R4000"
"Wolverhampton City Council","http://opendatacommunities.org/id/metropolitan-district-council/wolverhampton","705995","Oakley�S Limited","169655","8.91","Equipment - Purchase","190400141","06/12/2017","Fleet Services","Fleet Management","R4000"
"Wolverhampton City Council","http://opendatacommunities.org/id/metropolitan-district-council/wolverhampton","705995","Oakley�S Limited","169778","1.48","Equipment - Purchase","190400758","08/12/2017","Fleet Services","Fleet Management","R4000"
"Wolverhampton City Council","http://opendatacommunities.org/id/metropolitan-district-council/wolverhampton","705995","Oakley�S Limited","169778","0.84","Equipment - Purchase","190400758","08/12/2017","Fleet Services","Fleet Management","R4000"
"Wolverhampton City Council","http://opendatacommunities.org/id/metropolitan-district-council/wolverhampton","705995","Oakley�S Limited","169896","39.14","Equipment - Purchase","190404657","20/12/2017","Fleet Services","Fleet Management","R4000"
"Wolverhampton City Council","http://opendatacommunities.org/id/metropolitan-district-council/wolverhampton","705995","Oakley�S Limited","169896","8.80","Equipment - Purchase","190404657","20/12/2017","Fleet Services","Fleet Management","R4000"
"Wolverhampton City Council","http://opendatacommunities.org/id/metropolitan-district-council/wolverhampton","705995","Oakley�S Limited","169896","13.91","Equipment - Purchase","190404657","20/12/2017","Fleet Services","Fleet Management","R4000"
"Wolverhampton City Council","http://opendatacommunities.org/id/metropolitan-district-council/wolverhampton","705995","Oakley�S Limited","169896","39.14","Equipment - Purchase","190404657","20/12/2017","Fleet Services","Fleet Management","R4000"
"Wolverhampton City Council","http://opendatacommunities.org/id/metropolitan-district-council/wolverhampton","705995","Oakley�S Limited","169896","13.90","Equipment - Purchase","190404657","20/12/2017","Fleet Services","Fleet Management","R4000"
"Wolverhampton City Council","http://opendatacommunities.org/id/metropolitan-district-council/wolverhampton","705995","Oakley�S Limited","169897","36.64","Equipment - Purchase","190404658","20/12/2017","Fleet Services","Fleet Management","R4000"
"Wolverhampton City Council","http://opendatacommunities.org/id/metropolitan-district-council/wolverhampton","705995","Oakley�S Limited","169897","11.40","Equipment - Purchase","190404658","20/12/2017","Fleet Services","Fleet Management","R4000"
"Wolverhampton City Council","http://opendatacommunities.org/id/metropolitan-district-council/wolverhampton","705995","Oakley�S Limited","169893","52.38","Equipment - Purchase","190404655","20/12/2017","Fleet Services","Fleet Management","R4000"
"Wolverhampton City Council","http://opendatacommunities.org/id/metropolitan-district-council/wolverhampton","705995","Oakley�S Limited","169963","21.69","Equipment - Purchase","190404664","20/12/2017","Fleet Services","Fleet Management","R4000"
"Wolverhampton City Council","http://opendatacommunities.org/id/metropolitan-district-council/wolverhampton","705995","Oakley�S Limited","169917","22.49","Equipment - Purchase","190403333","15/12/2017","Fleet Services","Fleet Management","R4000"
"Wolverhampton City Council","http://opendatacommunities.org/id/metropolitan-district-council/wolverhampton","705995","Oakley�S Limited","169917","7.74","Equipment - Purchase","190403333","15/12/2017","Fleet Services","Fleet Management","R4000"
"Wolverhampton City Council","http://opendatacommunities.org/id/metropolitan-district-council/wolverhampton","705995","Oakley�S Limited","169917","143.67","Equipment - Purchase","190403333","15/12/2017","Fleet Services","Fleet Management","R4000"
"Wolverhampton City Council","http://opendatacommunities.org/id/metropolitan-district-council/wolverhampton","705995","Oakley�S Limited","169917","59.44","Equipment - Purchase","190403333","15/12/2017","Fleet Services","Fleet Management","R4000"
"Wolverhampton City Council","http://opendatacommunities.org/id/metropolitan-district-council/wolverhampton","705995","Oakley�S Limited","169687","8.10","Equipment - Purchase","190400142","06/12/2017","Fleet Services","Fleet Management","R4000"
"Wolverhampton City Council","http://opendatacommunities.org/id/metropolitan-district-council/wolverhampton","705995","Oakley�S Limited","169687","8.10","Equipment - Purchase","190400142","06/12/2017","Fleet Services","Fleet Management","R4000"
"Wolverhampton City Council","http://opendatacommunities.org/id/metropolitan-district-council/wolverhampton","705995","Oakley�S Limited","169687","8.10","Equipment - Purchase","190400142","06/12/2017","Fleet Services","Fleet Management","R4000"
"Wolverhampton City Council","http://opendatacommunities.org/id/metropolitan-district-council/wolverhampton","705995","Oakley�S Limited","170016","5.94","Equipment - Purchase","190405266","21/12/2017","Fleet Services","Fleet Management","R4000"
"Wolverhampton City Council","http://opendatacommunities.org/id/metropolitan-district-council/wolverhampton","706012","Offa�S Press","171117","14.31","Books","130198036","08/12/2017","Strategic Organisation Development","Global Budgets","R4309"
"Wolverhampton City Council","http://opendatacommunities.org/id/metropolitan-district-council/wolverhampton","706016","Office Furniture Online.Co.UK","SN143249","1,613.00","Plant, Equipment, Machinery & Computer Hardware","130199868","27/12/2017","-","Capital Maintenance - Roof / Ceilings Replacements","C3000"
"Wolverhampton City Council","http://opendatacommunities.org/id/metropolitan-district-council/wolverhampton","706030","Old Fallings Playgroup","TFT Autumn 2017 Inst 2","2,743.14","Grant Payments","190404263","20/12/2017","Early Years","Early Years Entitlement Funding for Disadvantaged 2 Year Olds","R4700"
"Wolverhampton City Council","http://opendatacommunities.org/id/metropolitan-district-council/wolverhampton","706051","OOSHA Limited","508430","119.98","Comms - Telephone Rental","130198568","27/12/2017","Visitor Economy","Box Office Administration","R4504"
"Wolverhampton City Council","http://opendatacommunities.org/id/metropolitan-district-council/wolverhampton","706052","Opal Contracts (UK) Limited","113255","2,048.80","Services - Professional Fees","130199047","13/12/2017","Schools","Green Park Special School","R4400"
"Wolverhampton City Council","http://opendatacommunities.org/id/metropolitan-district-council/wolverhampton","706065","Oracle Corporation UK Limited","1579738 - BACS rejection","20,805.22","Computing - Licences","130197363","01/12/2017","ICTS","Strategic ICTS (ICT Service Budget)","R4535"
"Wolverhampton City Council","http://opendatacommunities.org/id/metropolitan-district-council/wolverhampton","706068","EE Limited","126171207","390.00","Comms - Mobile Telephones","130197270","20/12/2017","ICTS","Strategic ICTS (ICT Service Budget)","R4507"
"Wolverhampton City Council","http://opendatacommunities.org/id/metropolitan-district-council/wolverhampton","706068","EE Limited","01267499100","6,920.73","Comms - Mobile Telephones","130199009","27/12/2017","ICTS","Strategic ICTS (ICT Service Budget)","R4507"
"Wolverhampton City Council","http://opendatacommunities.org/id/metropolitan-district-council/wolverhampton","706068","EE Limited","01267499100","12.50","Comms - Mobile Telephones","130199009","27/12/2017","ICTS","Strategic ICTS (ICT Service Budget)","R4507"
"Wolverhampton City Council","http://opendatacommunities.org/id/metropolitan-district-council/wolverhampton","706070","Orange Plant Limited","51942","36.82","Equipment - Purchase","190400151","06/12/2017","Fleet Services","Fleet Management","R4000"
"Wolverhampton City Council","http://opendatacommunities.org/id/metropolitan-district-council/wolverhampton","706070","Orange Plant Limited","51942","55.00","Equipment - Purchase","190400151","06/12/2017","Fleet Services","Fleet Management","R4000"
"Wolverhampton City Council","http://opendatacommunities.org/id/metropolitan-district-council/wolverhampton","706085","Osborne Technologies Limited","41175","600.00","Equipment - Purchase","130199012","13/12/2017","Adult Education","Service Wide","R4000"
"Wolverhampton City Council","http://opendatacommunities.org/id/metropolitan-district-council/wolverhampton","706085","Osborne Technologies Limited","41527","7,278.90","Computing - Purchase of Software","130199013","15/12/2017","Adult Education","Central Costs","R4531"
"Wolverhampton City Council","http://opendatacommunities.org/id/metropolitan-district-council/wolverhampton","706085","Osborne Technologies Limited","39956","1,495.00","Computing - Purchase of Hardware","130199011","13/12/2017","Adult Education","Service Wide","R4530"
"Wolverhampton City Council","http://opendatacommunities.org/id/metropolitan-district-council/wolverhampton","706085","Osborne Technologies Limited","39956","250.00","Computing - Purchase of Hardware","130199011","13/12/2017","Adult Education","Service Wide","R4530"
"Wolverhampton City Council","http://opendatacommunities.org/id/metropolitan-district-council/wolverhampton","706116","Oxley Stationers & Printers","36687","284.00","Printing","130198226","20/12/2017","Headstart","Headstart - Young People Engagement","R4300"
"Wolverhampton City Council","http://opendatacommunities.org/id/metropolitan-district-council/wolverhampton","706116","Oxley Stationers & Printers","36687","-284.00","Printing","130198226","20/12/2017","Headstart","Headstart - Young People Engagement","R4300"
"Wolverhampton City Council","http://opendatacommunities.org/id/metropolitan-district-council/wolverhampton","706116","Oxley Stationers & Printers","36687","249.00","Printing","130198226","20/12/2017","Headstart","Headstart - Young People Engagement","R4300"
"Wolverhampton City Council","http://opendatacommunities.org/id/metropolitan-district-council/wolverhampton","706116","Oxley Stationers & Printers","36687","29.17","Printing","130198226","20/12/2017","Headstart","Headstart - Young People Engagement","R4300"
"Wolverhampton City Council","http://opendatacommunities.org/id/metropolitan-district-council/wolverhampton","706116","Oxley Stationers & Printers","36692","300.00","Printing","130197798","27/12/2017","Headstart","Headstart Phase 3","R4300"
"Wolverhampton City Council","http://opendatacommunities.org/id/metropolitan-district-council/wolverhampton","706120","P A & S G Southall","SVNEWS 037","40.20","Books","130197272","01/12/2017","Strategic Organisation Development","Spring Vale Library","R4309"
"Wolverhampton City Council","http://opendatacommunities.org/id/metropolitan-district-council/wolverhampton","706120","P A & S G Southall","SVNEWS 036","44.40","Books","130197271","01/12/2017","Strategic Organisation Development","Spring Vale Library","R4309"
"Wolverhampton City Council","http://opendatacommunities.org/id/metropolitan-district-council/wolverhampton","706123","P A Turner","Tettenhall Tots TFT Autumn 2017 Inst 2","4,071.48","Grant Payments","190404271","20/12/2017","Early Years","Early Years Entitlement Funding for Disadvantaged 2 Year Olds","R4700"
"Wolverhampton City Council","http://opendatacommunities.org/id/metropolitan-district-council/wolverhampton","706123","P A Turner","Tettenhall Tots NEF Autumn 2017 INST 2","10,961.00","TPP - Private Nursery Education Funding","190403409","15/12/2017","Early Years","Early Years Universal Entitlement for 3 and 4 Year Olds","R5035"
"Wolverhampton City Council","http://opendatacommunities.org/id/metropolitan-district-council/wolverhampton","706147","P Wilcox","PW17 - 34","4,935.00","Services - Professional Fees","130195719","08/12/2017","Standards and Vulnerable Pupils","Music Support Team","R4400"
"Wolverhampton City Council","http://opendatacommunities.org/id/metropolitan-district-council/wolverhampton","706154","P.F.Cusack (Tool Supplies) Limited","0000851501","538.54","Materials","130196945","20/12/2017","Highways Maintenance","Patching","R4007"
"Wolverhampton City Council","http://opendatacommunities.org/id/metropolitan-district-council/wolverhampton","706154","P.F.Cusack (Tool Supplies) Limited","0000812802","133.65","Materials","130199877","28/12/2017","Street Lighting","Street Lighting Maintenance","R4007"
"Wolverhampton City Council","http://opendatacommunities.org/id/metropolitan-district-council/wolverhampton","706154","P.F.Cusack (Tool Supplies) Limited","0000854297","211.40","Materials","130198569","27/12/2017","Highways Maintenance","Patching","R4007"
"Wolverhampton City Council","http://opendatacommunities.org/id/metropolitan-district-council/wolverhampton","706154","P.F.Cusack (Tool Supplies) Limited","0000853460","16.74","Materials","130197799","27/12/2017","Highways Maintenance","Patching","R4007"
"Wolverhampton City Council","http://opendatacommunities.org/id/metropolitan-district-council/wolverhampton","706198","Parkeon Limited","UK102548","852.88","Equipment - R & M","130196772","15/12/2017","Parking Services","Car Parks Operational Staff","R4003"
"Wolverhampton City Council","http://opendatacommunities.org/id/metropolitan-district-council/wolverhampton","706198","Parkeon Limited","UK103055","10.00","Equipment - R & M","130198227","27/12/2017","Parking Services","St Peter�s Car Park","R4003"
"Wolverhampton City Council","http://opendatacommunities.org/id/metropolitan-district-council/wolverhampton","706198","Parkeon Limited","UK102442","1,150.50","Equipment - Purchase","130196274","13/12/2017","Parking Services","Car Parks Operational Staff","R4000"
"Wolverhampton City Council","http://opendatacommunities.org/id/metropolitan-district-council/wolverhampton","706259","Penderels Trust","0000150241","1,250.00","Direct payments - Long Term support","130195720","08/12/2017","Head of Commissioning","Commissioning Disabilities","R6302"
"Wolverhampton City Council","http://opendatacommunities.org/id/metropolitan-district-council/wolverhampton","706259","Penderels Trust","0000150223","1,120.00","Direct payments - Long Term support","130195557","06/12/2017","Head of Commissioning","Commissioning Disabilities","R6302"
"Wolverhampton City Council","http://opendatacommunities.org/id/metropolitan-district-council/wolverhampton","706298","Penn Kids Day Nursery","TFT Autumn 2017 Inst 2","3,709.92","Grant Payments","190404263","20/12/2017","Early Years","Early Years Entitlement Funding for Disadvantaged 2 Year Olds","R4700"
"Wolverhampton City Council","http://opendatacommunities.org/id/metropolitan-district-council/wolverhampton","706298","Penn Kids Day Nursery","NEF Autumn 2017 INST 2","9,241.42","TPP - Private Nursery Education Funding","190403399","15/12/2017","Early Years","Early Years Universal Entitlement for 3 and 4 Year Olds","R5035"
"Wolverhampton City Council","http://opendatacommunities.org/id/metropolitan-district-council/wolverhampton","706300","Penn News Limited","PNNEWS041","61.75","Books","130195722","13/12/2017","Strategic Organisation Development","Penn Library","R4309"
"Wolverhampton City Council","http://opendatacommunities.org/id/metropolitan-district-council/wolverhampton","706300","Penn News Limited","PNNEWS 043","49.40","Books","130198037","20/12/2017","Strategic Organisation Development","Penn Library","R4309"
"Wolverhampton City Council","http://opendatacommunities.org/id/metropolitan-district-council/wolverhampton","706301","Penna PLC","556256","1,650.00","Staff Advertising Costs","130191770","06/12/2017","Service Director Public Health & Wellbeing","Service Director Public Health & Wellbeing","R1700"
"Wolverhampton City Council","http://opendatacommunities.org/id/metropolitan-district-council/wolverhampton","706301","Penna PLC","552601","9,512.00","Services - Consultants","130197614","06/12/2017","Service Director Public Health & Wellbeing","Service Director Public Health & Wellbeing","R4404"
"Wolverhampton City Council","http://opendatacommunities.org/id/metropolitan-district-council/wolverhampton","706315","Permanent Futures Limited","220543","3,500.00","Agency Staff","130199376","27/12/2017","Corporate Communications","Insight and Performance","R1100"
"Wolverhampton City Council","http://opendatacommunities.org/id/metropolitan-district-council/wolverhampton","706315","Permanent Futures Limited","220295","1,750.00","Agency Staff","130199378","27/12/2017","Corporate Communications","Insight and Performance","R1100"
"Wolverhampton City Council","http://opendatacommunities.org/id/metropolitan-district-council/wolverhampton","706315","Permanent Futures Limited","220459","1,750.00","Agency Staff","130199379","27/12/2017","Corporate Communications","Insight and Performance","R1100"
"Wolverhampton City Council","http://opendatacommunities.org/id/metropolitan-district-council/wolverhampton","706315","Permanent Futures Limited","220228","2,450.00","Agency Staff","130199377","27/12/2017","Corporate Communications","Insight and Performance","R1100"
"Wolverhampton City Council","http://opendatacommunities.org/id/metropolitan-district-council/wolverhampton","706315","Permanent Futures Limited","220851","3,450.00","Agency Staff","130196418","06/12/2017","Service Director Children & Young People","Children & Young People Support Costs","R1100"
"Wolverhampton City Council","http://opendatacommunities.org/id/metropolitan-district-council/wolverhampton","706315","Permanent Futures Limited","220294","1,875.00","Agency Staff","130199371","27/12/2017","Corporate Communications","Insight and Performance","R1100"
"Wolverhampton City Council","http://opendatacommunities.org/id/metropolitan-district-council/wolverhampton","706315","Permanent Futures Limited","220227","5,250.00","Agency Staff","130199372","27/12/2017","Corporate Communications","Insight and Performance","R1100"
"Wolverhampton City Council","http://opendatacommunities.org/id/metropolitan-district-council/wolverhampton","706315","Permanent Futures Limited","220542","3,750.00","Agency Staff","130199375","27/12/2017","Corporate Communications","Insight and Performance","R1100"
"Wolverhampton City Council","http://opendatacommunities.org/id/metropolitan-district-council/wolverhampton","706315","Permanent Futures Limited","220458","1,875.00","Agency Staff","130199374","27/12/2017","Corporate Communications","Insight and Performance","R1100"
"Wolverhampton City Council","http://opendatacommunities.org/id/metropolitan-district-council/wolverhampton","706315","Permanent Futures Limited","220378","1,500.00","Agency Staff","130199373","27/12/2017","Corporate Communications","Insight and Performance","R1100"
"Wolverhampton City Council","http://opendatacommunities.org/id/metropolitan-district-council/wolverhampton","706317","Perry Hall Academy","TFT Autumn 2017 Inst 2","9,023.28","Grant Payments","190404263","20/12/2017","Early Years","Early Years Entitlement Funding for Disadvantaged 2 Year Olds","R4700"
"Wolverhampton City Council","http://opendatacommunities.org/id/metropolitan-district-council/wolverhampton","706328","Peter Littleford Limited","15 (AP)","401.00","Direct Work With Children","130192445","13/12/2017","Looked After Children","Adoption Support Fund","R6310"
"Wolverhampton City Council","http://opendatacommunities.org/id/metropolitan-district-council/wolverhampton","706328","Peter Littleford Limited","16 ( AP )","398.75","Direct Work With Children","130198741","27/12/2017","Looked After Children","Adoption Support Fund","R6310"
"Wolverhampton City Council","http://opendatacommunities.org/id/metropolitan-district-council/wolverhampton","706328","Peter Littleford Limited","51 ( KL )","85.00","Direct Work With Children","130198038","27/12/2017","Looked After Children","Adoption Support Fund","R6310"
"Wolverhampton City Council","http://opendatacommunities.org/id/metropolitan-district-council/wolverhampton","706328","Peter Littleford Limited","43 ( TR )","363.00","Direct Work With Children","130195183","06/12/2017","Looked After Children","Adoption Support Fund","R6310"
"Wolverhampton City Council","http://opendatacommunities.org/id/metropolitan-district-council/wolverhampton","706332","Peters Limited","1662659","76.05","Books","130197273","01/12/2017","Strategic Organisation Development","Global Budgets","R4309"
"Wolverhampton City Council","http://opendatacommunities.org/id/metropolitan-district-council/wolverhampton","706332","Peters Limited","1663502","189.56","Books","130199067","15/12/2017","Strategic Organisation Development","Global Budgets","R4309"
"Wolverhampton City Council","http://opendatacommunities.org/id/metropolitan-district-council/wolverhampton","706332","Peters Limited","1662660","665.58","Books","130197274","01/12/2017","Strategic Organisation Development","Global Budgets","R4309"
"Wolverhampton City Council","http://opendatacommunities.org/id/metropolitan-district-council/wolverhampton","706346","Philips Wrtl/Philips Lighting/Indal.","260346171","46.00","Materials","130198228","27/12/2017","Street Lighting","Street Lighting Maintenance","R4007"
"Wolverhampton City Council","http://opendatacommunities.org/id/metropolitan-district-council/wolverhampton","706346","Philips Wrtl/Philips Lighting/Indal.","260346171","12.14","Materials","130198228","27/12/2017","Street Lighting","Street Lighting Maintenance","R4007"
"Wolverhampton City Council","http://opendatacommunities.org/id/metropolitan-district-council/wolverhampton","706346","Philips Wrtl/Philips Lighting/Indal.","260346171","314.12","Materials","130198228","27/12/2017","Street Lighting","Street Lighting Maintenance","R4007"
"Wolverhampton City Council","http://opendatacommunities.org/id/metropolitan-district-council/wolverhampton","706346","Philips Wrtl/Philips Lighting/Indal.","260345769","1,557.27","Materials","130198405","20/12/2017","Street Lighting","Street Lighting Maintenance","R4007"
"Wolverhampton City Council","http://opendatacommunities.org/id/metropolitan-district-council/wolverhampton","706387","Pitney Bowes Software Europe Limited","IN238336","21,555.00","Computing - Purchase of Software","130194208","08/12/2017","Operation & Maintenance of Existing Network","Condition Surveys","R4531"
"Wolverhampton City Council","http://opendatacommunities.org/id/metropolitan-district-council/wolverhampton","706409","Playdays wolverhampton limited","Enhanced Funding Sum 17 D Beattie","1,000.00","Grant Payments","190403410","15/12/2017","Early Years","Early Years SEN Inclusion Fund","R4700"
"Wolverhampton City Council","http://opendatacommunities.org/id/metropolitan-district-council/wolverhampton","706409","Playdays wolverhampton limited","H Bias Enhanced Funding Sum 17","1,000.00","Grant Payments","190403412","15/12/2017","Early Years","Early Years SEN Inclusion Fund","R4700"
"Wolverhampton City Council","http://opendatacommunities.org/id/metropolitan-district-council/wolverhampton","706409","Playdays wolverhampton limited","NEF Autumn 2017 INST 2","10,864.33","TPP - Private Nursery Education Funding","190403399","15/12/2017","Early Years","Early Years Universal Entitlement for 3 and 4 Year Olds","R5035"
"Wolverhampton City Council","http://opendatacommunities.org/id/metropolitan-district-council/wolverhampton","706409","Playdays wolverhampton limited","TFT Autumn 2017 Inst 2","440.16","Grant Payments","190404263","20/12/2017","Early Years","Early Years Entitlement Funding for Disadvantaged 2 Year Olds","R4700"
"Wolverhampton City Council","http://opendatacommunities.org/id/metropolitan-district-council/wolverhampton","706417","Plexus Law","04364380","1,742.10","Insurance - General","130198039","15/12/2017","Audit Services","Legal Liability","R4962"
"Wolverhampton City Council","http://opendatacommunities.org/id/metropolitan-district-council/wolverhampton","706417","Plexus Law","04354613","1,650.10","Insurance - General","130197445","01/12/2017","Audit Services","Legal Liability","R4962"
"Wolverhampton City Council","http://opendatacommunities.org/id/metropolitan-district-council/wolverhampton","706417","Plexus Law","04364843","1,046.50","Insurance - General","130198040","20/12/2017","Audit Services","Legal Liability","R4962"
"Wolverhampton City Council","http://opendatacommunities.org/id/metropolitan-district-council/wolverhampton","706424","Pma International Limited","PMA 2751","3,081.00","Services - Professional Fees","130197446","20/12/2017","Headstart","Headstart Phase 3","R4400"
"Wolverhampton City Council","http://opendatacommunities.org/id/metropolitan-district-council/wolverhampton","706429","Polish Social & Cultural Assoc. Limited","17/40","100.00","Comms - Postage","130194968","06/12/2017","Strategic Organisation Development","Global Budgets","R4503"
"Wolverhampton City Council","http://opendatacommunities.org/id/metropolitan-district-council/wolverhampton","706436","Pony Express UK Limited","106439","35.00","Comms - Postage","130197800","27/12/2017","ICTS","Document Centre - General","R4503"
"Wolverhampton City Council","http://opendatacommunities.org/id/metropolitan-district-council/wolverhampton","706439","Portakabin Limited","900796562","128.72","Room Hire","130197802","27/12/2017","Facilities Management","Hickman Avenue Depot","R2201"
"Wolverhampton City Council","http://opendatacommunities.org/id/metropolitan-district-council/wolverhampton","706439","Portakabin Limited","900796565","86.67","Room Hire","130197804","27/12/2017","Facilities Management","Culwell Street Depot","R2201"
"Wolverhampton City Council","http://opendatacommunities.org/id/metropolitan-district-council/wolverhampton","706439","Portakabin Limited","900796566","272.97","Equipment - Hire","130197805","27/12/2017","Fleet Services","Passenger Transport - General","R4001"
"Wolverhampton City Council","http://opendatacommunities.org/id/metropolitan-district-council/wolverhampton","706439","Portakabin Limited","900796563","167.72","Room Hire","130198406","27/12/2017","Facilities Management","Hickman Avenue Depot","R2201"
"Wolverhampton City Council","http://opendatacommunities.org/id/metropolitan-district-council/wolverhampton","706439","Portakabin Limited","900796561","125.67","Room Hire","130197801","27/12/2017","Facilities Management","Hickman Avenue Depot","R2201"
"Wolverhampton City Council","http://opendatacommunities.org/id/metropolitan-district-council/wolverhampton","706439","Portakabin Limited","900796567","108.33","Room Hire","130197806","27/12/2017","Markets","Wholesale Market Facilities Management","R2201"
"Wolverhampton City Council","http://opendatacommunities.org/id/metropolitan-district-council/wolverhampton","706439","Portakabin Limited","900796564","386.75","Room Hire","130197803","27/12/2017","Facilities Management","Hickman Avenue Depot","R2201"
"Wolverhampton City Council","http://opendatacommunities.org/id/metropolitan-district-council/wolverhampton","706453","Post Office Counters Limited","VEHICLE TAX month ending December 17","8,715.00","Road Fund Licence","190400234","06/12/2017","Fleet Services","Fleet Management","R3004"
"Wolverhampton City Council","http://opendatacommunities.org/id/metropolitan-district-council/wolverhampton","706456","Posturite Limited","INV0499910","69.95","Stationery","130197807","06/12/2017","Planning","Planning","R4308"
"Wolverhampton City Council","http://opendatacommunities.org/id/metropolitan-district-council/wolverhampton","706456","Posturite Limited","INV0499910","7.99","Comms - Postage","130197807","06/12/2017","Planning","Planning","R4503"
"Wolverhampton City Council","http://opendatacommunities.org/id/metropolitan-district-council/wolverhampton","706456","Posturite Limited","INV0502736","81.59","Equipment - Purchase","130198918","13/12/2017","Safeguarding","Head of Service Quality and Safeguarding","R4000"
"Wolverhampton City Council","http://opendatacommunities.org/id/metropolitan-district-council/wolverhampton","706456","Posturite Limited","INV0502736","120.76","Equipment - Purchase","130198918","13/12/2017","Safeguarding","Head of Service Quality and Safeguarding","R4000"
"Wolverhampton City Council","http://opendatacommunities.org/id/metropolitan-district-council/wolverhampton","706456","Posturite Limited","INV0500999","81.59","Equipment - Purchase","130198229","06/12/2017","Looked After Children","Adoption and Residence Team & Allowances","R4000"
"Wolverhampton City Council","http://opendatacommunities.org/id/metropolitan-district-council/wolverhampton","706465","Powervamp Limited","26093","270.90","Equipment - Purchase","190404675","20/12/2017","Fleet Services","Fleet Management","R4000"
"Wolverhampton City Council","http://opendatacommunities.org/id/metropolitan-district-council/wolverhampton","706465","Powervamp Limited","26093","66.60","Equipment - Purchase","190404675","20/12/2017","Fleet Services","Fleet Management","R4000"
"Wolverhampton City Council","http://opendatacommunities.org/id/metropolitan-district-council/wolverhampton","706465","Powervamp Limited","26093","8.90","Equipment - Purchase","190404675","20/12/2017","Fleet Services","Fleet Management","R4000"
"Wolverhampton City Council","http://opendatacommunities.org/id/metropolitan-district-council/wolverhampton","706486","Premier Paper Group Limited","9034114","696.00","Stationery","130198230","29/12/2017","ICTS","Document Centre - General","R4308"
"Wolverhampton City Council","http://opendatacommunities.org/id/metropolitan-district-council/wolverhampton","706486","Premier Paper Group Limited","8990631","369.00","Stationery","130194969","06/12/2017","Adult Education","Service Wide","R4308"
"Wolverhampton City Council","http://opendatacommunities.org/id/metropolitan-district-council/wolverhampton","706486","Premier Paper Group Limited","9031707","1,211.50","Stationery","130198041","27/12/2017","ICTS","Document Centre - General","R4308"
"Wolverhampton City Council","http://opendatacommunities.org/id/metropolitan-district-council/wolverhampton","706486","Premier Paper Group Limited","9007482","152.40","Stationery","130196276","13/12/2017","ICTS","Document Centre - General","R4308"
"Wolverhampton City Council","http://opendatacommunities.org/id/metropolitan-district-council/wolverhampton","706486","Premier Paper Group Limited","9000817","60.00","Stationery","130195725","13/12/2017","Standards and Vulnerable Pupils","SEN Special Education Admin","R4308"
"Wolverhampton City Council","http://opendatacommunities.org/id/metropolitan-district-council/wolverhampton","706486","Premier Paper Group Limited","9000197","107.30","Stationery","130195724","13/12/2017","ICTS","Document Centre - General","R4308"
"Wolverhampton City Council","http://opendatacommunities.org/id/metropolitan-district-council/wolverhampton","706502","Prestwood Builders","12973","6,640.00","R&M - Departmental planned (external)","130195726","15/12/2017","Corporate Asset Management","Centralised Planned Maintenance","R2001"
"Wolverhampton City Council","http://opendatacommunities.org/id/metropolitan-district-council/wolverhampton","706516","Primary Teaching Services Limited","474544A","41.71","Equipment - Purchase","130198127","06/12/2017","Schools","St Michael�s Church of England Primary School","R4000"
"Wolverhampton City Council","http://opendatacommunities.org/id/metropolitan-district-council/wolverhampton","706516","Primary Teaching Services Limited","447740A","5.25","Equipment - Purchase","130197365","01/12/2017","Schools","D�Eyncourt Primary School","R4000"
"Wolverhampton City Council","http://opendatacommunities.org/id/metropolitan-district-council/wolverhampton","706516","Primary Teaching Services Limited","447740A","2.71","Equipment - Purchase","130197365","01/12/2017","Schools","D�Eyncourt Primary School","R4000"
"Wolverhampton City Council","http://opendatacommunities.org/id/metropolitan-district-council/wolverhampton","706539","Prism UK Medical Limited - Westholme Ltd","5232337","234.30","Equipment - R & M","130196277","13/12/2017","Independent Living Service","Independent Living Service","R4003"
"Wolverhampton City Council","http://opendatacommunities.org/id/metropolitan-district-council/wolverhampton","706539","Prism UK Medical Limited - Westholme Ltd","5232882","1,451.84","Equipment - Purchase","130196557","20/12/2017","Independent Living Service","Independent Living Service","R4000"
"Wolverhampton City Council","http://opendatacommunities.org/id/metropolitan-district-council/wolverhampton","706554","Profile Security Services Limited","124769","15.00","Service Charges","130194361","27/12/2017","School Planning & Resources","Other Support Services","R2205"
"Wolverhampton City Council","http://opendatacommunities.org/id/metropolitan-district-council/wolverhampton","706567","Prontaprint Limited","77565","125.00","Printing","130199288","20/12/2017","Headstart","Headstart Hubs","R4300"
"Wolverhampton City Council","http://opendatacommunities.org/id/metropolitan-district-council/wolverhampton","706567","Prontaprint Limited","77807","51.00","Marketing \ Non-staff advertising","130197808","06/12/2017","Visitor Economy","Civic & Wulfrun Outhouse & Other Comercial Events","R4317"
"Wolverhampton City Council","http://opendatacommunities.org/id/metropolitan-district-council/wolverhampton","706567","Prontaprint Limited","77807","-51.00","Marketing \ Non-staff advertising","130197808","06/12/2017","Visitor Economy","Civic & Wulfrun Outhouse & Other Comercial Events","R4317"
"Wolverhampton City Council","http://opendatacommunities.org/id/metropolitan-district-council/wolverhampton","706567","Prontaprint Limited","77807","22.50","Marketing \ Non-staff advertising","130197808","06/12/2017","Visitor Economy","Civic & Wulfrun Outhouse & Other Comercial Events","R4317"
"Wolverhampton City Council","http://opendatacommunities.org/id/metropolitan-district-council/wolverhampton","706567","Prontaprint Limited","77808","202.50","Marketing \ Non-staff advertising","130197809","27/12/2017","Visitor Economy","Civic & Wulfrun In-House Promotions","R4317"
"Wolverhampton City Council","http://opendatacommunities.org/id/metropolitan-district-council/wolverhampton","706567","Prontaprint Limited","77836","77.00","Photocopier Charges - Usage","130199891","28/12/2017","Bereavement Services","Cemeteries","R4305"
"Wolverhampton City Council","http://opendatacommunities.org/id/metropolitan-district-council/wolverhampton","706567","Prontaprint Limited","77809","108.00","Marketing \ Non-staff advertising","130197810","08/12/2017","Visitor Economy","Arts Publicity","R4317"
"Wolverhampton City Council","http://opendatacommunities.org/id/metropolitan-district-council/wolverhampton","706575","Prospects Sales & Marketing","00168077","300.00","Training Expenses","130198572","13/12/2017","Skills","Connexions Contract","R1650"
"Wolverhampton City Council","http://opendatacommunities.org/id/metropolitan-district-council/wolverhampton","706576","Prospects Services","061721","5,152.42","Computing - Licences","130198042","06/12/2017","Skills","Connexions Contract","R4535"
"Wolverhampton City Council","http://opendatacommunities.org/id/metropolitan-district-council/wolverhampton","706576","Prospects Services","061756","8,265.00","TPP - Other contractors","130198231","13/12/2017","Skills","IMPACT","R5099"
"Wolverhampton City Council","http://opendatacommunities.org/id/metropolitan-district-council/wolverhampton","706576","Prospects Services","061527","3,785.00","TPP - Other contractors","130195358","13/12/2017","Skills","IMPACT","R5099"
"Wolverhampton City Council","http://opendatacommunities.org/id/metropolitan-district-council/wolverhampton","706578","Protec Fire Detection PLC","A05KS8","212.18","R&M - Departmental planned (internal)","130196777","13/12/2017","Maintenance Programme","Civic Centre Repairs & Maintenance","R2000"
"Wolverhampton City Council","http://opendatacommunities.org/id/metropolitan-district-council/wolverhampton","706578","Protec Fire Detection PLC","AO5QY0","306.88","Fixtures and Fittings - R&M","130198043","27/12/2017","Facilities Management","Civic Centre","R2502"
"Wolverhampton City Council","http://opendatacommunities.org/id/metropolitan-district-council/wolverhampton","706607","Purchase Power Pitney Bowes","BF118557","328.72","Comms - Postage","130197615","20/12/2017","Youth Offending","Youth Offending Team","R4503"
"Wolverhampton City Council","http://opendatacommunities.org/id/metropolitan-district-council/wolverhampton","706607","Purchase Power Pitney Bowes","BF114997","14.91","Comms - Postage","130196946","15/12/2017","Catering","Education Catering - General Overheads","R4503"
"Wolverhampton City Council","http://opendatacommunities.org/id/metropolitan-district-council/wolverhampton","706607","Purchase Power Pitney Bowes","BF114997","14.91","Comms - Postage","130196946","15/12/2017","Cleaning","Cleaning of Buildings - General","R4503"
"Wolverhampton City Council","http://opendatacommunities.org/id/metropolitan-district-council/wolverhampton","706623","Q-Matic UK Limited","1032064","3,930.51","Computing - Licences","130197616","06/12/2017","ICTS","Strategic ICTS (ICT Service Budget)","R4535"
"Wolverhampton City Council","http://opendatacommunities.org/id/metropolitan-district-council/wolverhampton","706624","Q-Systems (UK) Limited","5083","15.00","Equipment - R & M","130199303","20/12/2017","Visitor Economy","Catering Overhead Account","R4003"
"Wolverhampton City Council","http://opendatacommunities.org/id/metropolitan-district-council/wolverhampton","706631","Quality Office Supplies Limited","SINV01085430","95.84","Cleaning Supplies and Materials","130198139","06/12/2017","Schools","Woodthorne Primary School","R2705"
"Wolverhampton City Council","http://opendatacommunities.org/id/metropolitan-district-council/wolverhampton","706631","Quality Office Supplies Limited","SINV01083172","23.96","Cleaning Supplies and Materials","130198138","06/12/2017","Schools","Woodthorne Primary School","R2705"
"Wolverhampton City Council","http://opendatacommunities.org/id/metropolitan-district-council/wolverhampton","706634","Quantaqua Limited","Wolv GT 701","1,014.65","Contract Cleaning","130198045","08/12/2017","Catering","Education Catering - General Overheads","R2700"
"Wolverhampton City Council","http://opendatacommunities.org/id/metropolitan-district-council/wolverhampton","706634","Quantaqua Limited","Wolv 1418","3,113.70","Contract Cleaning","130198044","08/12/2017","Catering","Education Catering - General Overheads","R2700"
"Wolverhampton City Council","http://opendatacommunities.org/id/metropolitan-district-council/wolverhampton","706639","Queen Alexander College","114447","15,674.48","TPP - Alternative Provision of Education","130199089","15/12/2017","Standards and Vulnerable Pupils","Post 16 SEN Provision","R5037"
"Wolverhampton City Council","http://opendatacommunities.org/id/metropolitan-district-council/wolverhampton","706649","R A Port & Associates","1965 - 17","83.60","Services - Professional Fees","130196420","01/12/2017","Child Protection","Head of Service - CINCP","R4400"
"Wolverhampton City Council","http://opendatacommunities.org/id/metropolitan-district-council/wolverhampton","706649","R A Port & Associates","1978-17","59.17","Services - Professional Fees","130199014","20/12/2017","Child Protection","Head of Service - CINCP","R4400"
"Wolverhampton City Council","http://opendatacommunities.org/id/metropolitan-district-council/wolverhampton","706649","R A Port & Associates","1973 - 17","57.98","Services - Professional Fees","130197447","06/12/2017","Child Protection","Head of Service - CINCP","R4400"
"Wolverhampton City Council","http://opendatacommunities.org/id/metropolitan-district-council/wolverhampton","706649","R A Port & Associates","1961 - 17","71.55","Services - Professional Fees","130195909","01/12/2017","Child Protection","Head of Service - CINCP","R4400"
"Wolverhampton City Council","http://opendatacommunities.org/id/metropolitan-district-council/wolverhampton","706649","R A Port & Associates","1970 - 17","157.40","Services - Professional Fees","130198046","13/12/2017","Child Protection","Head of Service - CINCP","R4400"
"Wolverhampton City Council","http://opendatacommunities.org/id/metropolitan-district-council/wolverhampton","706649","R A Port & Associates","1971 - 17","102.68","Services - Professional Fees","130197280","01/12/2017","Child Protection","Head of Service - CINCP","R4400"
"Wolverhampton City Council","http://opendatacommunities.org/id/metropolitan-district-council/wolverhampton","706649","R A Port & Associates","1959 - 17","164.95","Services - Professional Fees","130195561","01/12/2017","Child Protection","Head of Service - CINCP","R4400"
"Wolverhampton City Council","http://opendatacommunities.org/id/metropolitan-district-council/wolverhampton","706649","R A Port & Associates","1964 - 17","99.75","Services - Professional Fees","130196419","01/12/2017","Child Protection","Head of Service - CINCP","R4400"
"Wolverhampton City Council","http://opendatacommunities.org/id/metropolitan-district-council/wolverhampton","706666","R Prince","00036","240.00","TPP - Maintenance Contractor - General","190398569","01/12/2017","Transportation","Cycling Schemes - Bikeability","R5720"
"Wolverhampton City Council","http://opendatacommunities.org/id/metropolitan-district-council/wolverhampton","706668","R S Recovery Limited","00-107461","242.50","Services - Professional Fees","190403308","15/12/2017","Fleet Services","Fleet Management","R4400"
"Wolverhampton City Council","http://opendatacommunities.org/id/metropolitan-district-council/wolverhampton","706668","R S Recovery Limited","00-106594","155.00","Services - Professional Fees","190400129","06/12/2017","Fleet Services","Fleet Management","R4400"
"Wolverhampton City Council","http://opendatacommunities.org/id/metropolitan-district-council/wolverhampton","706668","R S Recovery Limited","00-107352","278.75","Services - Professional Fees","190403307","15/12/2017","Fleet Services","Fleet Management","R4400"
"Wolverhampton City Council","http://opendatacommunities.org/id/metropolitan-district-council/wolverhampton","706678","R.N. Diesel","3193","5.00","Equipment - Purchase","190402028","13/12/2017","Fleet Services","Fleet Management","R4000"
"Wolverhampton City Council","http://opendatacommunities.org/id/metropolitan-district-council/wolverhampton","706692","Rad Building Limited","16/0671/DFG","5,315.00","Grants paid out","190404409","20/12/2017","-","Disabled Facilities Grants","C5000"
"Wolverhampton City Council","http://opendatacommunities.org/id/metropolitan-district-council/wolverhampton","706692","Rad Building Limited","15/0610/DFG","12,952.98","Grants paid out","190401973","13/12/2017","-","Disabled Facilities Grants","C5000"
"Wolverhampton City Council","http://opendatacommunities.org/id/metropolitan-district-council/wolverhampton","706697","Radis Community Care","Blue Bill 27/12/2017","20,089.40","TPP - Home Care","130200469","27/12/2017","Older People Care Purchasing","OP Care Purchasing (Spot Placements)","R5420"
"Wolverhampton City Council","http://opendatacommunities.org/id/metropolitan-district-council/wolverhampton","706697","Radis Community Care","1308201720170823","21.18","TPP - Home Care","190367450","05/12/2017","Older People Care Purchasing","OP Care Purchasing (Spot Placements)","R5420"
"Wolverhampton City Council","http://opendatacommunities.org/id/metropolitan-district-council/wolverhampton","706697","Radis Community Care","1308201720170823","109.43","TPP - Home Care","190367450","05/12/2017","Older People Care Purchasing","OP Care Purchasing (Spot Placements)","R5420"
"Wolverhampton City Council","http://opendatacommunities.org/id/metropolitan-district-council/wolverhampton","706697","Radis Community Care","1308201720170823","35.30","TPP - Home Care","190367450","05/12/2017","Older People Care Purchasing","OP Care Purchasing (Spot Placements)","R5420"
"Wolverhampton City Council","http://opendatacommunities.org/id/metropolitan-district-council/wolverhampton","706697","Radis Community Care","1308201720170823","67.07","TPP - Home Care","190367450","05/12/2017","Older People Care Purchasing","OP Care Purchasing (Spot Placements)","R5420"
"Wolverhampton City Council","http://opendatacommunities.org/id/metropolitan-district-council/wolverhampton","706697","Radis Community Care","1308201720170823","49.42","TPP - Home Care","190367450","05/12/2017","Older People Care Purchasing","OP Care Purchasing (Spot Placements)","R5420"
"Wolverhampton City Council","http://opendatacommunities.org/id/metropolitan-district-council/wolverhampton","706697","Radis Community Care","1308201720170823","105.90","TPP - Home Care","190367450","05/12/2017","Older People Care Purchasing","OP Care Purchasing (Spot Placements)","R5420"
"Wolverhampton City Council","http://opendatacommunities.org/id/metropolitan-district-council/wolverhampton","706697","Radis Community Care","1308201720170823","144.73","TPP - Home Care","190367450","05/12/2017","Older People Care Purchasing","OP Care Purchasing (Spot Placements)","R5420"
"Wolverhampton City Council","http://opendatacommunities.org/id/metropolitan-district-council/wolverhampton","706697","Radis Community Care","1308201720170823","187.09","TPP - Home Care","190367450","05/12/2017","Older People Care Purchasing","OP Care Purchasing (Spot Placements)","R5420"
"Wolverhampton City Council","http://opendatacommunities.org/id/metropolitan-district-council/wolverhampton","706697","Radis Community Care","1308201720170823","148.26","TPP - Home Care","190367450","05/12/2017","Older People Care Purchasing","OP Care Purchasing (Spot Placements)","R5420"
"Wolverhampton City Council","http://opendatacommunities.org/id/metropolitan-district-council/wolverhampton","706697","Radis Community Care","1308201720170823","218.86","TPP - Home Care","190367450","05/12/2017","Older People Care Purchasing","OP Care Purchasing (Spot Placements)","R5420"
"Wolverhampton City Council","http://opendatacommunities.org/id/metropolitan-district-council/wolverhampton","706697","Radis Community Care","1308201720170823","74.13","TPP - Home Care","190367450","05/12/2017","Older People Care Purchasing","OP Care Purchasing (Spot Placements)","R5420"
